{"text_format":"3","workbook":"xlsx","n_sheets":1,"sheets":["省局"],"not_rendered":{"defined_names":1},"read":"whole","date_system":"1900"}

{"sheet":"省局","index":0,"n_rows":1354,"n_cols":8,"rows_kept":1354,"merged":[[0,0,0,7],[2,0,16,0],[17,0,63,0],[64,0,106,0],[107,0,192,0],[193,0,248,0],[249,0,291,0],[292,0,343,0],[344,0,365,0],[366,0,404,0],[405,0,461,0],[462,0,480,0],[481,0,557,0],[558,0,609,0],[610,0,665,0],[666,0,716,0],[717,0,762,0],[763,0,807,0],[808,0,869,0],[870,0,947,0],[882,7,885,7],[948,0,965,0],[966,0,974,0],[975,0,1031,0],[1032,0,1085,0],[1086,0,1133,0],[1134,0,1145,0],[1146,0,1182,0],[1183,0,1237,0],[1238,0,1275,0],[1276,0,1300,0],[1301,0,1352,0]]}
["各省（区、市）气象局2017年度高校毕业生招聘计划"]
["单位","具体用人单位","单位层级","拟安排岗位","岗位性质","专业 ","学历","招聘数"]
["天津市气象局","气象台","省级","短时气象预报岗","业务","气象学、大气科学","博士研究生",1]
[null,"气象台","省级","流域气象预报岗","业务","气象学、大气科学","硕士研究生级以上",1]
[null,"海洋中心气象台","省级","海洋气象预报岗","业务","气象学、大气科学、海洋气象","硕士研究生级以上",1]
[null,"气候中心","省级","农业气象业务","科研","大气科学、气候学、农业气象","博士研究生",1]
[null,"气象科学研究所","省级","数值模式开发","业务、科研","大气科学","博士研究生",1]
[null,"气象科学研究所","省级","数值模式开发","业务、科研","大气物理与大气环境","硕士研究生及以上",1]
[null,"环境中心","省级","预报和评估","业务、科研","大气科学、气象学、大气物理与大气环境","博士研究生",1]
[null,"环境中心","省级","预报和评估","业务、科研","大气科学、气象学、大气物理与大气环境","硕士研究生及以上",1]
[null,"信息中心","省级","数据开发","业务","气象学、大气科学","硕士研究生及以上",1]
[null,"气象服务中心","省级","气象服务技术开发岗","科研","大气科学、气象学","博士研究生",1]
[null,"气象服务中心","省级","气象服务岗","业务","大气科学","硕士研究生及以上",2]
[null,"津南区气象局","县级","综合业务岗","业务","大气科学、大气物理与大气环境","硕士研究生及以上",1]
[null,"蓟县气象局","县级","综合业务岗","业务","气象学、大气科学","硕士研究生及以上",1]
[null,"宁河区气象局","县级","综合业务岗","业务、服务","大气科学、农业气象","硕士研究生及以上",1]
[null,"合计",{"$nulls":5},{"$f":"SUM(H3:H16)","v":15}]
["河北省气象局","河北省气象台","省级","预报","业务","大气科学","本科及以上",2]
[null,"省气候中心","省级","气候预测","业务","大气科学、气象学","硕士研究生及以上",1]
[null,"省气候中心","省级","气候评价","业务","大气科学、气象学","硕士研究生及以上",1]
[null,"河北省气象技术装备中心","省级","综合气象观测实时资料产品研发","业务","大气科学(气象仪器与数据处理)","硕士研究生及以上",1]
[null,"河北省气象技术装备中心","省级","综合气象观测实时资料产品研发","业务","大气科学(气象观测模型与数据处理)","硕士研究生及以上",1]
[null,"河北省气象服务中心","省级","公共气象服务","业务","大气科学","本科及以上",1]
[null,"河北省气象科学研究所","省级","遥感","业务","3S集成与气象应用、摄影测量与遥感（遥感技术与应用方向、遥感图像处理与分析方向、遥感与GIS集成方向）、地图学与地理信息系统（遥感图像处理方向）","硕士及以上",1]
[null,"河北分院","省级","业务","业务","大气科学或气象学","硕士研究生及以上",1]
[null,"无极县气象局","县级","测报","业务","大气科学类","本科及以上",1]
[null,"深泽县气象局","县级","测报","业务","大气科学类","本科及以上",1]
[null,"高邑县气象局","县级","测报","业务","大气科学类","本科及以上",1]
[null,"承德市气象台","市级","天气预报","业务","大气科学","本科及以上",2]
[null,"承德市气象台","市级","天气预报","业务","大气科学","硕士研究生及以上",1]
[null,"承德市气象台","市级","专业气象服务","业务","大气物理学、大气化学","硕士研究生及以上",1]
[null,"承德市气象探测中心","市级","信息保障","业务","电子信息工程、通信工程","硕士研究生及以上",2]
[null,"张家口市气象事务中心","市级","核算中心","业务","会计学","硕士研究生及以上",2]
[null,"张家口气象探测中心","市级","探测中心","业务","信息与通信工程、计算机科学与技术","硕士研究生及以上",1]
[null,"张家口市气象台","市级","气象台","业务","大气科学","本科及以上",3]
[null,"张家口市生态与农业气象中心","市级","生态与农业气象中心","业务","大气科学类","本科及以上",4]
[null,"张家口市气象服务中心","市级","气象服务中心","业务","大气科学类","本科及以上",1]
[null,"北戴河海洋气象预报台","市级","预报","业务","大气科学","本科及以上",1]
[null,"卢龙县气象局","县级","雷达维修","业务","电子信息工程或通信专业","本科及以上",1]
[null,"唐山市气象事务中心","市局","会计","服务","会计","硕士研究生及以上",1]
[null,"唐山市乐亭县气象局","县级","综合业务","业务","大气科学类","本科及以上",1]
[null,"唐山市气象站","县级","综合业务","业务","大气科学类","本科及以上",1]
[null,"廊坊市气象探测中心","市级","业务","业务","大气科学类","本科及以上",1]
[null,"廊坊市气象服务中心","市级","服务","服务","大气科学类","本科及以上",1]
[null,"保定市安新县气象局","县级","综合探测","业务","大气科学类","本科及以上",1]
[null,"保定市满城区气象局","县级","综合探测","业务","大气科学类","本科及以上",1]
[null,"保定市高阳县气象局","县级","综合探测","业务","大气科学类","本科及以上",1]
[null,"保定市安国市气象局","县级","综合探测","业务","大气科学类","本科及以上",1]
[null,"沧州市海洋气象中心","市级","综合业务","业务","大气科学类","本科及以上",1]
[null,"沧州市大气探测中心","市级","综合业务","业务","电子与通信工程","硕士研究生及以上",1]
[null,"沧州市气象服务中心","市级","综合业务","业务","农业资源利用","硕士研究生及以上",1]
[null,"沧州市气象事务中心","市级","财务","业务","会计","硕士研究生及以上",1]
[null,"沧州市气象站","县级","综合业务","业务","大气科学类","本科及以上",2]
[null,"衡水市气象局气象探测中心","市级","网络","业务","计算机科学与技术、通信工程、信息工程","硕士研究生及以上",1]
[null,"衡水市生态与农业气象中心","市级","业务","业务","大气科学类","本科及以上",1]
[null,"邢台市气象台","市级","天气预报","业务","大气科学类","本科及以上",3]
[null,"邢台市气象探测中心","市级","通讯网络管理","业务","电子与通信工程、信息与通信工程、电子科学与技术、计算机科学与技术","硕士研究生及以上",1]
[null,"邯郸市气象台","市级","预报","业务","大气科学","本科及以上",1]
[null,"邯郸市探测中心","市级","雷达保障","业务","气象探测技术或大气遥感与大气探测","硕士研究生及以上",2]
[null,"邯郸市生态与农业气象中心","市级","大气环境","业务","大气环境","本科及以上",1]
[null,"邯郸市事务中心","市级","财务","业务","会计","硕士研究生及以上",1]
[null,"邯郸市气象站","县级","测报","业务","大气科学类","本科及以上",2]
[null,"定州市气象台","县级","预报测报","业务","大气科学类","本科及以上",1]
[null,"合计",{"$nulls":5},{"$f":"SUM(H18:H63)","v":60}]
["山西省气象局","山西省气候中心","省级","气候预测","业务","气候学","硕士研究生及以上",1]
[null,"山西省气候中心","省级","农业气象","业务","农业气象","硕士研究生及以上",1]
[null,"山西省气象信息中心","省级","信息网络支持与维护","业务","计算机应用技术、计算机技术、计算机科学与技术、电子与通信工程、网络工程、通信与信息系统、信息与通信工程","硕士研究生及以上",1]
[null,"山西省气象服务中心","省级","服务产品制作","服务","气象学","硕士研究生及以上",2]
[null,"山西省气象服务中心","省级","电视频道节目制作","服务","广播电视","硕士研究生及以上",1]
[null,"山西省气象科学研究所","省级","科研","科研","气象学","硕士研究生及以上",1]
[null,"山西省气象灾害防御技术中心\n（山西省气象干部培训学院）","省级","教学","业务","气象学","硕士研究生及以上",1]
[null,"山西省气象灾害防御技术中心\n（山西省气象干部培训学院）","省级","教学","业务","气象学","硕士研究生及以上",1]
[null,"太原市气象信息与技术保障中心（太原天气雷达站）","市级","气象雷达运用","业务","大气探测","硕士研究生及以上",2]
[null,"太原市古交市气象局","县级","综合气象业务","业务","大气科学类","本科及以上",1]
[null,"太原市清徐县气象局","县级","农业气象试验","业务","应用气象、农业气象","本科及以上",2]
[null,"太原市阳曲县气象局","县级","综合气象业务","业务","大气科学类","本科及以上",1]
[null,"太原市娄烦县气象局","县级","综合气象业务","业务","大气科学类","本科及以上",1]
[null,"大同市大同气象站","县级","农业气象试验","业务","应用气象、农业气象","本科及以上",1]
[null,"忻州市气象服务中心","市级","气象服务","业务","大气科学类","本科及以上",1]
[null,"忻州市气象灾害防御技术中心","市级","气象服务","业务","大气科学类","本科及以上",1]
[null,"忻州市河曲县气象局","县级","气象综合业务","业务","大气科学及相关专业","本科及以上",1]
[null,"忻州市五台县气象局","县级","气象综合业务","业务","大气科学类","本科及以上",1]
[null,"忻州市神池县气象局","县级","气象综合业务","业务","大气科学类","本科及以上",1]
[null,"忻州市保德县气象局","县级","气象综合业务","业务","大气科学及相关专业","本科及以上",1]
[null,"忻州市岢岚县气象局","县级","气象综合业务","业务","大气科学类","本科及以上",1]
[null,"忻州市静乐县气象局","县级","气象综合业务","业务","大气科学类","本科及以上",1]
[null,"阳泉市气象台","市级","天气预报","业务","气象学","硕士研究生及以上",1]
[null,"阳泉市阳泉气象站","县级","气象综合业务","业务","气象学","硕士研究生及以上",1]
[null,"吕梁市临县气象局","县级","气象综合业务","业务","大气科学类","本科及以上",1]
[null,"吕梁市交口县气象局","县级","气象综合业务","业务","大气科学类","本科及以上",1]
[null,"吕梁市兴县气象局","县级","气象综合业务","业务","大气科学及相关专业","本科及以上",1]
[null,"吕梁市方山县气象局","县级","气象综合业务","业务","大气科学类","本科及以上",1]
[null,"晋中市左权县气象局","县级","气象综合业务","业务","大气科学类","本科及以上",1]
[null,"晋中市祁县气象局","县级","气象综合业务","业务","大气科学类","本科及以上",1]
[null,"长治市长子县气象局","县级","气象综合业务","业务","大气科学类","本科及以上",1]
[null,"晋城市沁水县气象局","县级","气象综合业务","业务","大气科学类","本科及以上",1]
[null,"晋城市陵川县气象局","县级","气象综合业务","业务","大气科学类","本科及以上",1]
[null,"临汾市永和县气象局","县级","气象综合业务","业务","大气科学类","本科及以上",1]
[null,"临汾市永和县气象局","县级","气象综合业务","业务","大气科学及相关专业","本科及以上",1]
[null,"临汾市大宁县气象局","县级","气象综合业务","业务","大气科学类","本科及以上",1]
[null,"临汾市乡宁县气象局","县级","气象综合业务","业务","大气科学类","本科及以上",1]
[null,"运城市气象局财务核算中心","市级","会计","业务","会计学、财务管理","本科及以上",1]
[null,"运城市平陆县气象局","县级","综合气象业务","业务","大气科学类","本科及以上",1]
[null,"运城市绛县气象局","县级","综合气象业务","业务","大气科学类","本科及以上",1]
[null,"运城市新绛县气象局","县级","综合气象业务","业务","大气科学类","本科及以上",1]
[null,"运城市临猗县气象局","县级","农业气象试验","业务","应用气象、农业气象","本科及以上",2]
[null,"合计",{"$nulls":5},{"$f":"SUM(H65:H106)","v":46}]
["内蒙古自治区气象局","内蒙古自治区气象台","省级","短时临近预报","业务","气象学","硕士研究生及以上",2]
[null,"内蒙古自治区气候中心","省级","气候预测","业务","气象学","硕士研究生及以上",2]
[null,"内蒙古自治区气候中心","省级","气候资源开发利用","业务","气象学","硕士研究生及以上",1]
[null,"内蒙古大气探测技术保障中心","省级","高空保障","业务","电子与信息类","硕士研究生及以上",1]
[null,"内蒙古大气探测技术保障中心","省级","地面保障","业务","电子与信息类","硕士研究生及以上",1]
[null,"内蒙古大气探测技术保障中心","省级","数据质量监控","业务","气象学","硕士研究生及以上",1]
[null,"内蒙古自治区生态与农业气象中心","省级","办公室","管理","中文类","硕士研究生及以上",1]
[null,"内蒙古自治区气象干部培训学院","省级","培训教师","业务","气象学","硕士研究生及以上",1]
[null,"内蒙古自治区气象干部培训学院","省级","气象学会","管理","科学技术史（气象科技方向）","硕士研究生及以上",1]
[null,"内蒙古自治区气象信息中心","省级","系统管理","业务","计算机科学及应用","硕士研究生及以上",2]
[null,"内蒙古自治区雷电预警防护中心","省级","雷电防御","业务","气象学","硕士研究生及以上",2]
[null,"内蒙古气象科研所","省级","人工影响天气","业务","大气物理与大气环境","硕士研究生及以上",2]
[null,"内蒙古气象科研所","省级","人工影响天气","业务","气象学","硕士研究生及以上",1]
[null,"呼和浩特市气象台","市级","天气预报","业务","大气科学","本科及以上",1]
[null,"呼和浩特赛罕区气象局","县级","综合业务","业务","大气科学","本科及以上",2]
[null,"呼和浩特赛罕区气象局","县级","综合业务","业务","应用气象","本科及以上",1]
[null,"呼和浩特清水河县气象局","县级","综合业务","业务","大气科学","本科及以上",1]
[null,"呼和浩特托克托县气象局","县级","综合业务","业务","大气科学","本科及以上",1]
[null,"包头市气象台","市级","预测预报","业务","大气科学","硕士研究生及以上",1]
[null,"包头市土右旗气象台","县级","预测预报","业务","大气科学","本科及以上",1]
[null,"包头市达茂旗气象台","县级","预测预报","业务","大气科学","本科及以上",1]
[null,"包头市达茂旗气象台","县级","生态气象","业务","生态学","硕士研究生及以上",1]
[null,"呼伦贝尔市气象台","市级","气象预报","业务","气象学","硕士研究生及以上",2]
[null,"鄂伦春旗气象台","县级","综合业务","业务","大气科学类","本科及以上",1]
[null,"鄂伦春旗气象台","县级","技术保障","业务","电子与信息类、农学","本科及以上",1]
[null,"根河市气象台","县级","综合业务","业务","大气科学类","本科及以上",1]
[null,"新巴尔虎右旗气象台","县级","综合业务","业务","大气科学类","本科及以上",1]
[null,"博克图气象站","县级","技术保障","业务","电子与信息类","本科及以上",1]
[null,"阿尔山市气象台","县级","综合业务","业务","大气科学","本科及以上",1]
[null,"阿尔山市气象台","县级","农业气象服务","业务","农业气象","本科及以上",1]
[null,"扎赉特旗气象台","县级","农业气象服务","业务","农业气象","本科及以上",1]
[null,"突泉县气象台","县级","综合业务","业务","大气科学","本科及以上",1]
[null,"突泉县气象台","县级","农业气象服务","业务","农业气象","本科及以上",1]
[null,"兴安盟气象灾害防御中心","市级","综合业务","业务","工民建","硕士研究生及以上",1]
[null,"通辽市气象台","市级","气象预报","业务","气象学","硕士研究生及以上",2]
[null,"通辽市气象灾害防御中心","市级","牧区气象服务","业务","影视传媒类","本科及以上",1]
[null,"扎鲁特旗气象台","县级","综合业务","业务","大气科学类","本科及以上",1]
[null,"库伦旗气象台","县级","综合业务","业务","大气科学类","本科及以上",1]
[null,"舍伯吐气象站","县级","综合业务","业务","大气科学类","本科及以上",1]
[null,"霍林郭勒市气象台","县级","雷达机务","业务","自动控制","本科及以上",1]
[null,"巴雅尔图胡硕气象站","县级","综合业务","业务","生物、生态学","本科及以上",1]
[null,"赤峰市气象台","市级","气象预报","业务","气象学","硕士研究生及以上",1]
[null,"巴林左旗气象台","县级","综合业务","业务","大气科学（大气探测方向）","本科及以上",1]
[null,"阿鲁科尔沁旗气象台","县级","综合业务","业务","大气科学类","本科及以上",1]
[null,"宁城县气象台","县级","综合业务","业务","大气科学类","本科及以上",1]
[null,"克什克腾旗气象台","县级","综合业务","业务","生态学","硕士研究生及以上",1]
[null,"宝国图气象站","县级","综合业务","业务","计算机、通信工程","本科及以上",1]
[null,"林西县气象台","县级","综合业务","业务","大气科学（大气探测方向）","本科及以上",1]
[null,"锡林郭勒盟气象台","市级","气象预报","服务","大气科学","本科及以上",2]
[null,"锡盟气象技术装备保障与信息中心","市级","网络保障","业务","电子与信息类","本科及以上",1]
[null,"锡林浩特牧业气象试验站","县级","牧业气象","业务","生态学","硕士研究生及以上",1]
[null,"东乌珠穆沁旗气象台","县级","预报服务","服务","大气科学类","本科及以上",1]
[null,"乌拉盖管理区气象台","县级","综合业务","服务","大气科学类","本科及以上",1]
[null,"苏尼特左旗气象台","县级","综合业务","服务","大气科学类","本科及以上",1]
[null,"镶黄旗气象台","县级","综合业务","服务","大气科学类","本科及以上",1]
[null,"镶黄旗气象台","县级","技术保障","业务","计算机软件","本科及以上",1]
[null,"那仁宝力格国家基本气象站","县级","综合观测","业务","电子与信息类、环境科学类","本科及以上",1]
[null,"朱日和气象站","县级","综合观测","业务","信息工程","本科及以上",1]
[null,"乌兰察布市气象台","市级","气象服务","业务","大气科学","硕士研究生及以上",1]
[null,"乌兰察布市气象局行政执法队","市级","行政执法","业务","法律","本科及以上",1]
[null,"乌兰察布市气象局财务核算中心","市级","财会","业务","会计学","本科及以上",1]
[null,"四子王旗气象局","县级","综合业务","业务","大气科学","本科及以上",2]
[null,"化德县气象局","县级","综合业务","业务","大气科学","本科及以上",1]
[null,"卓资县气象局","县级","综合业务","业务","大气科学","本科及以上",1]
[null,"察右中旗气象局","县级","综合业务","业务","大气科学","本科及以上",1]
[null,"察右后旗气象局","县级","综合业务","业务","大气科学","本科及以上",1]
[null,"巴彦淖尔市气象台","市级","预报服务","业务","大气科学","本科及以上",2]
[null,"临河区气象局","县级","农业气象试验","科研","农业气象","本科及以上",1]
[null,"五原县气象局","县级","综合业务","业务","大气科学","本科及以上",1]
[null,"乌拉特前旗气象局","县级","综合业务","业务","大气科学","本科及以上",1]
[null,"乌拉特中旗气象局","县级","技术保障","业务","电子与信息技术","本科及以上",1]
[null,"乌拉特后旗气象局","县级","综合业务","业务","大气科学","本科及以上",1]
[null,"鄂尔多斯市气象台","市级","预报服务","业务","气象学","硕士研究生及以上",2]
[null,"鄂尔多斯市气象台","市级","预报服务","业务","遥感应用","本科及以上",1]
[null,"鄂尔多斯市气象灾害防御中心","市级","气象服务","服务","中文类","本科及以上",1]
[null,"鄂托克前旗气象台","县级","预报服务","业务","大气科学类、生态学等","本科及以上",1]
[null,"杭锦旗气象台","县级","预报服务","业务","大气科学类、生态学等","本科及以上",1]
[null,"乌审旗气象台","县级","预报服务","业务","大气科学类、生态学等","本科及以上",1]
[null,"阿拉善右旗气象台","县级","天气预报","业务","大气科学类","本科及以上",1]
[null,"额济纳旗气象台","县级","天气预报","业务","大气科学类","本科及以上",1]
[null,"额济纳旗气象台","县级","牧区气象服务","业务","财经类","本科及以上",1]
[null,"雅布赖气象站","县级","气象服务","服务","大气科学","本科及以上",1]
[null,"拐子湖气象站","县级","综合观测","业务","计算机科学与技术","本科及以上",1]
[null,"二连浩特市气象台","市级","预报服务","业务","大气科学","本科及以上",1]
[null,"二连浩特市气象局财务核算中心","市级","财会","业务","会计学","本科及以上",1]
[null,"合计",{"$nulls":5},{"$f":"SUM(H108:H192)","v":97}]
["辽宁省气象局","辽宁省气象台","省级","天气预报","业务","大气科学","博士研究生",2]
[null,"辽宁省气象台","省级","天气预报","业务","大气物理与大气环境","硕士研究生及以上",1]
[null,"辽宁省气象台","省级","天气预报","业务","大气科学","硕士研究生及以上",1]
[null,"沈阳区域气候中心","省级","短期气候预测","业务","气象学、气候学","博士研究生",1]
[null,"中国气象局沈阳大气环境研究所","省级","数值预报","科研","大气科学","博士研究生",1]
[null,"中国气象局沈阳大气环境研究所","省级","大气环境","科研","大气科学、大气物理与大气环境","博士研究生",1]
[null,"辽宁省气象信息中心","省级","业务系统软件开发与维护","业务","计算机应用技术、信息技术","博士研究生",1]
[null,"辽宁省气象信息中心","省级","资料应用","业务","大气科学","硕士研究生及以上",1]
[null,"辽宁省气象装备保障中心","省级","气象信息与技术保障","业务","通信与信息系统、控制理论与控制工程","博士研究生",1]
[null,"辽宁省气象装备保障中心","省级","气象信息与技术保障","业务","大气物理学与大气环境","硕士研究生及以上",1]
[null,"辽宁省气象装备保障中心","省级","气象信息与技术保障","业务","大气科学","硕士研究生及以上",1]
[null,"辽宁省气象服务中心","省级","公共气象服务","业务","大气科学","博士研究生",1]
[null,"辽宁省人工影响天气办公室","省级","人工影响天气指挥岗","业务","大气科学、大气物理","硕士研究生及以上",2]
[null,"沈阳市气象台","市级","天气预报","业务","大气科学","博士研究生",1]
[null,"康平县气象台","县级","综合业务","业务","大气科学","本科及以上",1]
[null,"大连市气象台","市级","短时预报","业务","大气探测","硕士研究生及以上   ",1]
[null,"大连市气象台","市级","短期预报","业务","大气科学","硕士研究生及以上   ",1]
[null,"大连市气象局财务核算中心","市级","财务管理","业务","会计学","硕士研究生及以上",1]
[null,"金州区气象台","县级","综合业务","业务","电子信息工程","本科及以上",1]
[null,"庄河市气象台","县级","综合业务","业务","大气科学、应用气象","硕士研究生及以上",1]
[null,"长海县气象台","县级","综合业务","业务","大气科学、大气物理","本科及以上",1]
[null,"鞍山市气象服务中心","市级","公共气象服务","业务","气象学、大气科学","硕士研究生及以上",1]
[null,"海城市气象台","县级","综合观测","业务","大气科学","本科及以上",1]
[null,"岫岩满族自治县气象服务中心","县级","公共气象服务","服务","大气科学","本科及以上",1]
[null,"新宾满族自治县气象台","县级","综合业务岗","业务","大气科学","本科及以上",1]
[null,"清原满族自治县气象服务中心","县级","装备与技术保障岗","业务","大气科学、大气物理与大气环境、应用气象","本科及以上",1]
[null,"新宾满族自治县气象服务中心","县级","装备与技术保障岗","业务","大气科学、大气物理与大气环境、应用气象","本科及以上",1]
[null,"本溪市气象台","市级","天气预报","业务","大气科学","硕士研究生及以上",1]
[null,"桓仁满族自治县气象台","县级","综合业务岗","业务","大气科学、应用气象、大气物理","硕士研究生及以上",1]
[null,"桓仁满族自治县气象台","县级","综合业务岗","业务","大气科学、应用气象、大气物理","本科及以上",1]
[null,"丹东市气象局财务核算中心","市级","财务会计","业务","会计学","硕士研究生及以上",1]
[null,"东港市气象台","县级","综合气象业务","业务","大气科学","本科及以上",1]
[null,"宽甸县气象台","县级","综合气象业务","业务","大气科学","本科及以上",1]
[null,"黑山县气象台","县级","综合业务","业务","大气科学","本科及以上",2]
[null,"义县气象台","县级","综合业务","业务","大气科学","本科及以上",1]
[null,"盖州市气象台","县级","综合气象业务","业务","大气科学","本科及以上",1]
[null,"阜新市气象台","市级","天气预报","业务","大气科学","硕士研究生及以上",1]
[null,"阜新蒙古族自治县气象台","县级","综合气象业务","业务","大气科学","本科及以上",1]
[null,"彰武县气象台","县级","综合气象业务","业务","计算机科学与技术","本科及以上",1]
[null,"灯塔市气象台","县级","气象预报预警","业务","大气科学","本科及以上",1]
[null,"灯塔市气象服务中心","县级","信息与技术保障","业务","电子信息工程","本科及以上",1]
[null,"朝阳市生态与农业气象中心","市级","公共气象服务","业务","大气科学","硕士研究生及以上",1]
[null,"朝阳市生态与农业气象中心","市级","公共气象服务","业务","大气科学","本科及以上",1]
[null,"朝阳市气象装备保障中心","市级","公共气象服务","业务","大气科学","硕士研究生及以上",1]
[null,"朝阳市气象装备保障中心","市级","公共气象服务","业务","大气科学","本科及以上",1]
[null,"凌源市气象台","县级","综合气象业务","业务","大气科学","本科及以上",1]
[null,"凌源市气象台","县级","综合气象业务","业务","大气科学、应用气象、大气探测","本科及以上",1]
[null,"朝阳县气象台","县级","综合气象业务","业务","大气科学","硕士研究生及以上",1]
[null,"建平县气象台","县级","综合气象业务","业务","大气科学","本科及以上",1]
[null,"建平县气象台","县级","综合气象业务","业务","大气科学、应用气象、大气探测","本科及以上",1]
[null,"建平县气象台","县级","综合气象业务","业务","信息管理与信息系统","本科及以上",1]
[null,"葫芦岛市气象台","市级","天气预报","业务","大气科学","硕士研究生及以上",1]
[null,"兴城市气象服务中心","县级","综合业务","业务","大气科学","本科及以上",1]
[null,"绥中县气象台","县级","天气预报","业务","大气科学","硕士研究生及以上",1]
[null,"绥中县气象服务中心","县级","综合业务","业务","大气科学","本科及以上",1]
[null,"合计",{"$nulls":5},{"$f":"SUM(H194:H248)","v":58}]
["吉林省气象局","吉林省气象台","省级","天气预报","业务","气象学","博士研究生",1]
[null,"吉林省气象台","省级","天气预报","业务","气象学","硕士研究生及以上",2]
[null,"吉林省气候中心","省级","气候预测","业务","气象学、气候变化与公共气象、气候系统与全球变化","硕士研究生及以上",1]
[null,"吉林省气象信息网络中心","省级","气象资料审核","业务","大气科学类","硕士研究生及以上",1]
[null,"吉林省气象信息网络中心","省级","信息网络管理及GIS开发","业务","计算机与科学技术类、信息与通信工程类、地图学与地理信息系统","硕士研究生及以上",2]
[null,"吉林省气象探测保障中心","省级","技术保障","业务","仪器科学与技术类、信息与通信工程类","硕士研究生及以上",1]
[null,"吉林省气象服务中心","省级","预报服务","业务","大气科学类","硕士研究生及以上",2]
[null,"吉林省气象科学研究所","省级","天气气候、数值预报","业务","气象学","博士研究生",1]
[null,"吉林省气象科学研究所","省级","天气气候、数值预报","业务","气象学","硕士研究生及以上",2]
[null,"吉林省气象科学研究所","省级","农业气象","业务","大气科学","硕士研究生及以上",1]
[null,"吉林省防雷减灾中心","省级","防灾减灾服务","业务","大气科学类","硕士研究生及以上",1]
[null,"吉林省防雷减灾中心","省级","气象灾害防御","业务","大气科学类","硕士研究生及以上",1]
[null,"吉林省人工影响天气办公室","省级","人影作业指挥","业务","气象学","硕士研究生及以上",1]
[null,"吉林省人工影响天气办公室","省级","人影作业指挥","业务","气象学","博士研究生",1]
[null,"德惠市气象局","县级","综合气象业务","业务","大气科学类","本科及以上",1]
[null,"吉林市气象台","市级","天气预报","业务","气象学","硕士研究生及以上",1]
[null,"舒兰市气象局","县级","综合气象业务","业务","大气科学、应用气象学、雷电防护科学与技术","本科及以上",1]
[null,"蛟河市气象局","县级","综合气象业务","业务","大气科学、应用气象学、雷电防护科学与技术","本科及以上",1]
[null,"敦化市气象局","县级","综合气象业务","业务","大气科学类","本科及以上",1]
[null,"和龙市气象局","县级","综合气象业务","业务","大气科学类","本科及以上",1]
[null,"汪清县气象局","县级","综合气象业务","业务","大气科学类","本科及以上",2]
[null,"安图县气象局","县级","综合气象业务","业务","大气科学类","本科及以上",2]
[null,"罗子沟气象站","县级","综合气象业务","业务","大气科学类","本科及以上",1]
[null,"罗子沟气象站","县级","综合气象业务","业务","大气科学类、农学","本科及以上",1]
[null,"双辽市气象局","县级","综合气象业务","业务","大气科学","本科及以上",1]
[null,"双辽市气象局","县级","综合气象业务","业务","数学与应用数学、计算数学及其应用软件、电子学与信息系统","本科及以上",1]
[null,"公主岭市气象局","县级","综合气象业务","业务","大气科学、应用气象学、农学","本科及以上",1]
[null,"柳河县气象局","县级","综合气象业务","业务","大气科学类","本科及以上",2]
[null,"辉南县气象局","县级","综合气象业务","业务","大气科学类","本科及以上",1]
[null,"通榆县气象局","县级","综合气象业务","业务","大气科学类","本科及以上",1]
[null,"通榆县气象局","县级","综合气象业务","业务","通信工程","本科及以上",1]
[null,"大安市气象局","县级","综合气象业务","业务","大气科学类","本科及以上",1]
[null,"大安市气象局","县级","综合气象业务","业务","计算机科学与技术","本科及以上",1]
[null,"扶余市气象局","县级","综合气象业务","业务","大气科学类、电子信息科学与技术","本科及以上",1]
[null,"长岭县气象局","县级","综合气象业务","业务","大气科学类","本科及以上",1]
[null,"乾安县气象局","县级","综合气象业务","业务","大气科学类","本科及以上",1]
[null,"前郭县气象局","县级","综合气象业务","业务","大气科学类","本科及以上",1]
[null,"临江市气象局","县级","综合气象业务","业务","大气科学","本科及以上",3]
[null,"靖宇县气象局","县级","综合气象业务","业务","大气科学","本科及以上",1]
[null,"长白山气象台","市级","天气预报","业务","大气科学","本科及以上",1]
[null,"长白山天池气象站","市级","综合气象业务","业务","大气科学","本科及以上",1]
[null,"池北区气象局","县级","综合气象业务","业务","大气科学","本科及以上",1]
[null,"合计",{"$nulls":5},{"$f":"SUM(H250:H291)","v":51}]
["黑龙江省气象局","省气象台","省级","预报","业务","大气科学","硕士研究生及以上",1]
[null,"省气象服务中心","省级","气象服务产品开发","服务","农业气象学或应用气象学","硕士研究生及以上",1]
[null,"省气象数据中心","省级","网络管理","业务","软件工程或信息工程","硕士研究生及以上",1]
[null,"省气象科研所","省级","应用气象服务","业务","大气物理环境","博士研究生",1]
[null,"省气象科研所","省级","应用气象服务","业务","气象学","博士研究生",1]
[null,"省气象局机关服务中心","省级","房产一科","服务","电力系统继电保护或电气技术","本科及以上",1]
[null,"龙凤山区域大气本底站","省级","本底观测、数据开发","业务","大气科学类","硕士研究生及以上",1]
[null,"哈尔滨市公共气象服务中心","市级","预报服务","业务","大气科学类","硕士研究生及以上",3]
[null,"哈尔滨市气象台","市级","预报","业务","大气科学类","本科及以上",1]
[null,"哈尔滨市大气探测技术保障中心","市级","装备保障","业务","大气科学类或电子信息类","硕士研究生及以上",1]
[null,"方正县气象局","县级","综合气象业务","业务","大气科学类或电子信息类或农学","本科及以上",1]
[null,"依兰县气象局","县级","综合气象业务","业务","大气科学类或电子信息类或农学","本科及以上",1]
[null,"延寿县气象局","县级","综合气象业务","业务","大气科学类或电子信息类或农学","本科及以上",1]
[null,"齐齐哈尔市气象台","市级","预报","业务","大气科学","本科及以上",1]
[null,"泰来县气象局","县级","综合气象业务","业务","计算计科学与技术","本科及以上",1]
[null,"泰来县气象局","县级","综合气象业务","服务","大气科学类","本科及以上",1]
[null,"克山县气象局","县级","综合气象业务","业务","计算计科学与技术","本科及以上",1]
[null,"甘南县气象局","县级","综合气象业务","业务","大气科学类或电子信息类或农学","本科及以上",1]
[null,"海林市气象局","县级","综合气象业务","业务","大气科学类","本科及以上",1]
[null,"穆棱市气象局","县级","综合气象业务","业务","大气科学类","本科及以上",1]
[null,"宁安市气象局","县级","综合气象业务","业务","大气科学类或计算机科学与技术","本科及以上",1]
[null,"抚远县气象局","县级","综合气象业务","业务","大气科学类","本科及以上",1]
[null,"安达市气象局","县级","综合气象业务","业务","大气科学类","本科及以上",1]
[null,"明水县气象局","县级","综合气象业务","业务","电子与信息类","本科及以上",1]
[null,"明水县气象局","县级","综合气象业务","业务","数学与应用数学","本科及以上",1]
[null,"青岗县气象局","县级","综合气象业务","业务","农学","本科及以上",1]
[null,"青岗县气象局","县级","综合气象业务","业务","电子与信息类","本科及以上",1]
[null,"望奎县气象局","县级","综合气象业务","业务","电子与信息类","本科及以上",1]
[null,"望奎县气象局","县级","综合气象业务","业务","计算机科学与技术","本科及以上",1]
[null,"庆安县气象局","县级","综合气象业务","业务","遥感科学","本科及以上",1]
[null,"漠河县气象局","县级","综合气象业务","业务","电子与信息类","本科及以上",1]
[null,"新林区气象局","县级","综合气象业务","业务","物理、农学","本科及以上",2]
[null,"呼中区气象局","县级","综合气象业务","业务","   科学技术史   ","硕士研究生及以上",1]
[null,"黑河市气象局","市级","人影","业务","大气科学类","本科及以上",1]
[null,"黑河市气象局","市级","预报","业务","大气科学类","本科及以上",1]
[null,"爱辉区气象局","县级","综合气象业务","业务","大气科学类","本科及以上",1]
[null,"孙吴县气象局","县级","综合气象业务","业务","大气科学类","本科及以上",1]
[null,"嫩江县气象局","县级","农业气象","业务","应用气象学","本科及以上",1]
[null,"嫩江县气象局","县级","综合气象业务","业务","电子与信息类","本科及以上",2]
[null,"五营区气象局","县级","森林生态","业务","电子与信息类","本科及以上",1]
[null,"五营区气象局","县级","地面观测","业务","地球科学类","本科及以上",1]
[null,"五营区气象局","县级","林业气象","业务","林学","本科及以上",1]
[null,"嘉荫县气象局","县级","预报","业务","大气科学类","本科及以上",1]
[null,"嘉荫县气象局","县级","地面观测","业务","电子与信息类","本科及以上",1]
[null,"乌伊岭区气象局","县级","综合气象业务","业务","大气科学类","本科及以上",1]
[null,"密山市气象局","县级","综合气象业务","业务","大气科学类","本科及以上",1]
[null,"集贤县气象局","县级","综合气象业务","业务","大气科学类","本科及以上",1]
[null,"集贤县气象局","县级","综合气象业务","业务","电子与信息类","本科及以上",1]
[null,"饶河县气象局","县级","综合气象业务","业务","生态学","本科及以上",1]
[null,"绥滨县气象局","县级","综合气象业务","业务","大气科学","本科及以上",1]
[null,"肇源县气象局","县级","设备及网络维护","业务","电子与信息类","本科及以上",1]
[null,"合计",{"$nulls":5},{"$f":"SUM(H293:H343)","v":55}]
["上海市气象局","上海中心气象台","省级","短临预报","科研与业务","大气科学类","博士研究生",1]
[null,"上海中心气象台","省级","短临预报","科研与业务","大气科学类","硕士研究生及以上",1]
[null,"上海中心气象台","省级","短期预报","科研与业务","大气科学类","硕士研究生及以上",1]
[null,"上海中心气象台","省级","数值预报释用","科研与业务","大气科学类","博士研究生",1]
[null,"上海中心气象台","省级","数值预报释用","科研与业务","大气科学类","硕士研究生及以上",1]
[null,"中国气象局上海台风研究所","省级","台风数值预报","科研与业务","大气科学类","博士研究生",1]
[null,"中国气象局上海台风研究所","省级","海气耦合模式研发","科研与业务","大气科学类","博士研究生",1]
[null,"上海市气候中心","省级","业务系统研发","科研与业务","大气科学、计算机","硕士研究生及以上",1]
[null,"上海市气象信息与技术支持中心","省级","探测技术保障","科研与业务","大气科学","硕士研究生及以上",1]
[null,"上海市气象信息与技术支持中心","省级","气象数据处理与档案管理","科研与业务","气候学","硕士研究生及以上",1]
[null,"上海市公共气象服务中心","省级","预警发布","科研与业务","应用气象学","硕士研究生及以上",1]
[null,"上海市公共气象服务中心","省级","气象服务（大数据分析）","科研与业务","应用气象学","硕士研究生及以上",1]
[null,"上海市气象科学研究所","省级","城市数值模拟","科研","大气科学","硕士研究生及以上",2]
[null,"上海市气象科学研究所","省级","GPS/遥感","科研与业务","大气遥感科学与技术、3S集成与气象应用","硕士研究生及以上",2]
[null,"上海市气象科技服务中心","省级","专业气象","科研与业务","大气科学","硕士研究生及以上",1]
[null,"上海市气象科技服务中心","省级","专业气象","科研与业务","大气科学或海洋气象","硕士研究生及以上",1]
[null,"上海海洋气象台","省级","海洋气象探测","科研与业务","海洋科学类其它专业","硕士研究生及以上",1]
[null,"上海市气象局财务核算中心","省级","会计","业务","会计","本科及以上",1]
[null,"上海市气象局财务核算中心","省级","会计","业务","财务管理、会计","硕士研究生及以上",1]
[null,"中国气象局上海物资管理处","省级","计量管理、计量测试检验","科研与业务","计量、电子测试、仪器仪表类相关专业","博士研究生",1]
[null,"中国气象局上海物资管理处","省级","计量测试检验","科研与业务","计量、电子测试、仪器仪表类相关专业","硕士研究生及以上",2]
[null,"合计",{"$nulls":5},{"$f":"SUM(H345:H365)","v":24}]
["江苏省气象局","江苏省气候中心","省级","气候预测与评价","业务","气候系统与气候变化","博士研究生",1]
[null,"江苏省气象信息中心","省级","数据开发","业务","应用数学","硕士研究生及以上",1]
[null,"江苏省气象探测中心","省级","探测系统建设与维保","业务","信息与通讯工程","硕士研究生及以上",1]
[null,"江苏省气象服务中心","省级","技术保障","业务","计算机应用","硕士研究生及以上",1]
[null,"江苏省气象科学研究所","省级","应用气象技术研发","科研","大气物理学与大气环境","博士研究生",1]
[null,"江苏省气象科学研究所","省级","天气预报技术研发","科研","气象学（天气方向）","博士研究生",1]
[null,"高淳区气象局","县级","公共气象服务","业务","气象学（天气气候、应用气象方向）","硕士研究生及以上",1]
[null,"苏州市气象台","市级","预报","业务","气象学（天气方向）","博士研究生",1]
[null,"常熟市气象局","县级","公共气象服务","业务","气象学（天气气候、应用气象方向）","硕士研究生及以上",1]
[null,"常州市气象台","市级","预报","业务","气象学（天气方向）","博士研究生",1]
[null,"常州市气象台","市级","预报","业务","气象学（天气方向）","硕士研究生及以上",1]
[null,"常州市气象服务中心","市级","公共气象服务","业务","气象学（天气方向）","硕士研究生及以上",1]
[null,"金坛区气象局","县级","公共气象服务","业务","气象学（天气气候、应用气象方向）","硕士研究生及以上",1]
[null,"扬中市气象局","县级","公共气象服务","业务","气象学（天气气候、应用气象方向）","硕士研究生及以上",1]
[null,"宝应县气象局","县级","公共气象服务","业务","气象学（天气气候、应用气象方向）","硕士研究生及以上",1]
[null,"高邮市气象局","县级","公共气象服务","业务","气象学（天气气候、应用气象方向）","硕士研究生及以上",1]
[null,"兴化市气象局","县级","公共气象服务","业务","气象学（天气气候、应用气象方向）","硕士研究生及以上",1]
[null,"海安县气象局","县级","公共气象服务","业务","气象学（天气气候、应用气象方向）","硕士研究生及以上",1]
[null,"海门市气象局","县级","公共气象服务","业务","大气科学（天气气候、应用气象方向）","本科及以上",1]
[null,"启东市气象局","县级","公共气象服务","业务","气象学（天气气候、应用气象方向）","硕士研究生及以上",1]
[null,"徐州市气象探测中心","市级","综合气象探测","业务","大气科学（天气气候、应用气象方向）","本科及以上",2]
[null,"徐州市局财务核算中心","市级","财务管理","管理","会计","本科及以上",1]
[null,"徐州市气象装备中心","市级","装备及通讯保障","业务","计算机应用","硕士研究生及以上",1]
[null,"丰县气象局","县级","公共气象服务","业务","大气科学（天气气候、应用气象方向）","本科及以上",1]
[null,"沛县气象局","县级","公共气象服务","业务","大气科学（天气气候、应用气象方向）","本科及以上",1]
[null,"睢宁县气象局","县级","公共气象服务","业务","大气科学（天气气候、应用气象方向）","本科及以上",1]
[null,"盐城市局财务核算中心","市级","财务管理","管理","会计","本科及以上",1]
[null,"盐城市气象台","市级","预报","业务","气象学（天气方向）","硕士研究生及以上",2]
[null,"东台市气象局","县级","公共气象服务","业务","气象学（天气气候、应用气象方向）","硕士研究生及以上",1]
[null,"阜宁县气象局","县级","公共气象服务","业务","大气科学（天气气候、应用气象方向）","本科及以上",1]
[null,"宿迁市气象台","市级","预报","业务","气象学（天气方向）","硕士研究生及以上",1]
[null,"宿迁市气象装备中心","市级","装备及通讯保障","业务","计算机应用","硕士研究生及以上",1]
[null,"沭阳县气象局","县级","公共气象服务","业务","大气科学（天气气候、应用气象方向）","本科及以上",1]
[null,"泗洪县气象局","县级","公共气象服务","业务","大气科学（天气气候、应用气象方向）","本科及以上",1]
[null,"金湖县气象局","县级","公共气象服务","业务","大气科学（天气气候、应用气象方向）","本科及以上",1]
[null,"盱眙县气象局","县级","公共气象服务","业务","大气科学（天气气候、应用气象方向）","本科及以上",1]
[null,"连云港市气象台","市级","预报","业务","气象学（天气方向）","硕士研究生及以上",2]
[null,"灌南县气象局","县级","公共气象服务","业务","大气科学（天气气候、应用气象方向）","本科及以上",1]
[null,"合计",{"$nulls":5},{"$f":"SUM(H367:H404)","v":41}]
["浙江省气象局","浙江省气象台","省级","天气预报","业务","气象学（中尺度气象学方向）","博士研究生",1]
[null,"浙江省气象台","省级","天气预报","业务","气象学（雷达应用方向）","博士研究生",1]
[null,"浙江省气候中心","省级","气候应用","业务","气象学（气候应用方向）","硕士研究生及以上",1]
[null,"浙江省气象服务中心","省级","网络服务新技术（系统）开发","业务","计算机及应用","硕士研究生及以上",2]
[null,"浙江省气象科学研究所","省级","灾害天气","科研","气象学（天气动力学方向）","博士研究生",1]
[null,"浙江省气象科学研究所","省级","电力气象","科研","大气科学类","硕士研究生及以上",1]
[null,"浙江省大气探测技术保障中心","省级","雷达保障","业务","大气探测","硕士研究生及以上",1]
[null,"浙江省大气探测技术保障中心","省级","自动站保障","业务","软件工程","硕士研究生及以上",1]
[null,"浙江省气象信息网络中心","省级","技术开发","业务","大气科学类","硕士研究生及以上",1]
[null,"浙江省气象信息网络中心","省级","运行保障","业务","计算机及应用","硕士研究生及以上",1]
[null,"浙江省气象局机关服务中心","省级","后勤保障","业务","电气工程及其自动化","硕士研究生及以上",1]
[null,"浙江省气象局财务核算中心","省级","会计","业务","会计学","硕士研究生及以上",1]
[null,"宁波市气象台","市级","天气预报","业务","气象学","博士研究生",2]
[null,"宁波市气象台","市级","天气预报","业务","大气科学、气象学","硕士研究生及以上",2]
[null,"慈溪市气象局下属事业单位","县级","综合气象业务","业务","大气科学类","硕士研究生及以上",1]
[null,"余姚市气象局下属事业单位","县级","综合气象业务","业务","大气科学类","硕士研究生及以上",1]
[null,"象山县气象局下属事业单位","县级","综合气象业务","业务","大气科学类","本科及以上",1]
[null,"杭州市气象台","市级","天气预报","业务","气象学","博士研究生",1]
[null,"临安区域大气本底站","县级","综合观测","业务","大气科学类","本科及以上",1]
[null,"临安区域大气本底站","县级","环境气象","业务","大气科学类","硕士研究生及以上",2]
[null,"淳安县气象局下属事业单位","县级","综合气象业务","业务","大气科学类","本科及以上",1]
[null,"温州市气象局下属事业单位","市级","预警预报","业务","大气科学类","硕士研究生及以上",1]
[null,"平阳县气象局下属事业单位 ","县级","综合气象业务","业务","大气科学类","本科及以上",1]
[null,"文成县气象局下属事业单位","县级","综合气象业务","业务","大气科学类","本科及以上",1]
[null,"洞头区气象局下属事业单位","县级","综合气象业务","业务","大气科学类","本科及以上",1]
[null,"湖州市气象局下属事业单位","市级","气象业务服务","业务","大气科学类","硕士研究生及以上",1]
[null,"嘉兴市气象局下属事业单位","市级","天气预报","业务","大气科学、气象学","硕士研究生及以上",1]
[null,"嘉善县气象局下属事业单位","县级","综合气象业务","业务","大气科学、气象学","硕士研究生及以上",1]
[null,"平湖市气象局下属事业单位","县级","综合气象业务","业务","大气科学、气象学","硕士研究生及以上",1]
[null,"海宁市气象局下属事业单位","县级","综合气象业务","业务","大气科学、气象学","硕士研究生及以上",1]
[null,"桐乡市气象局下属事业单位","县级","综合气象业务","业务","大气科学、气象学","硕士研究生及以上",1]
[null,"绍兴市气象局下属事业单位","市级","天气预报","业务","大气科学、气象学","硕士研究生及以上",2]
[null,"上虞区气象局下属事业单位","县级","综合气象业务","业务","大气科学类","硕士研究生及以上",1]
[null,"嵊州市气象局下属事业单位","县级","综合气象业务","业务","大气科学","本科及以上",1]
[null,"金华市气象局下属事业单位","市级","天气预报","业务","大气科学类","硕士研究生及以上",1]
[null,"金华市气象局下属事业单位","市级","气象服务","业务","大气科学类","硕士研究生及以上",1]
[null,"金华市气象局下属事业单位","市级","观测","业务","大气科学类","硕士研究生及以上",1]
[null,"衢州市气象局下属事业单位","市级","天气预报","业务","大气科学类","硕士研究生及以上",1]
[null,"开化县气象局下属事业单位","县级","综合气象业务","业务","大气科学类","硕士研究生及以上",1]
[null,"常山县气象局下属事业单位","县级","综合气象业务","业务","大气科学类","硕士研究生及以上",1]
[null,"舟山市气象局下属事业单位","市级","天气预报服务","业务","大气科学类","硕士研究生及以上",2]
[null,"舟山市气象局下属事业单位","市级","气象服务","业务","大气科学类","硕士研究生及以上",1]
[null,"舟山市气象局下属事业单位","市级","气象网络与装备保障","业务","大气探测（雷达方向）","硕士研究生及以上",1]
[null,"定海区气象局下属事业单位","县级","综合气象业务","业务","大气科学类","本科及以上",1]
[null,"嵊泗县气象局下属事业单位","县级","综合气象业务","业务","大气科学类","本科及以上",1]
[null,"普陀区气象局下属事业单位","县级","综合气象业务","业务","大气科学类","本科及以上",1]
[null,"台州市气象局下属事业单位","市级","气象服务","业务","计算机及应用、计算机设计","硕士研究生及以上",1]
[null,"台州市气象局下属事业单位","市级","预报预警","业务","大气科学","硕士研究生及以上",2]
[null,"天台县气象局下属事业单位","县级","综合气象业务","业务","大气科学","本科及以上",1]
[null,"仙居县气象局下属事业单位","县级","综合气象业务","业务","大气科学、应用气象","本科及以上",1]
[null,"丽水市气象局下属事业单位","市级","天气预报","业务","大气科学","硕士研究生及以上",1]
[null,"丽水市气象局下属事业单位","市级","天气预报","业务","大气科学","本科及以上",1]
[null,"龙泉市气象局下属事业单位","县级","综合气象业务","业务","大气科学","本科及以上",1]
[null,"云和县气象局下属事业单位","县级","综合气象业务","业务","大气科学","本科及以上",1]
[null,"庆元县气象局下属事业单位","县级","综合气象业务","业务","大气科学","本科及以上",1]
[null,"青田县气象局下属事业单位","县级","综合气象业务","业务","大气科学","本科及以上",1]
[null,"合计",{"$nulls":5},{"$f":"SUM(H406:H461)","v":63}]
["安徽省气象局","安徽省气象台","省级","预报","业务","大气科学类","硕士研究生及以上",2]
[null,"安徽省淮河流域气象中心","省级","预报","业务","大气科学类","硕士研究生及以上",2]
[null,"安徽省气候中心","省级","业务","业务","气象学","博士研究生",1]
[null,"中国气象局气象干部培训学院安徽分院","省级","教育培训","业务","大气科学类","硕士研究生及以上",1]
[null,"中国气象局气象干部培训学院安徽分院","省级","教育培训","业务","大气探测","硕士研究生及以上",1]
[null,"芜湖市气象局","市级","会计","业务","会计学","本科及以上",1]
[null,"芜湖市繁昌县气象局","县级","综合业务岗","业务","大气科学类","硕士研究生及以上",1]
[null,"铜陵市气象局","市级","会计","业务","会计学","本科及以上",1]
[null,"池州市东至县气象局","县级","综合业务岗","业务","大气科学类","本科及以上",1]
[null,"池州市青阳县气象局","县级","综合业务岗","业务","大气科学类","本科及以上",1]
[null,"安庆市气象局","市级","会计","业务","会计学","本科及以上",1]
[null,"安庆市望江县气象局","县级","综合业务岗","业务","大气科学类","本科及以上",1]
[null,"黄山市气象局","市级","综合业务岗","业务","大气科学类","硕士研究生及以上 ",1]
[null,"黄山市气象局","市级","会计","业务","会计学","本科及以上",1]
[null,"黄山市歙县气象局","县级","综合业务岗","业务","大气科学类","本科及以上",1]
[null,"黄山市休宁县气象局","县级","综合业务岗","业务","大气科学类","本科及以上",1]
[null,"黄山市黟县气象局","县级","综合业务岗","业务","大气科学类","本科及以上",1]
[null,"黄山市祁门县气象局","县级","综合业务岗","业务","大气科学类","本科及以上",1]
[null,"合计",{"$nulls":5},{"$f":"SUM(H463:H480)","v":20}]
["福建省气象局","福建省气象台","省级","预报预警","科研","大气科学类","博士研究生",1]
[null,"福建省气象台","省级","预报服务","业务","大气科学类（雷达应用方向）","硕士研究生及以上",1]
[null,"福建省气候中心","省级","气候研究","业务","大气科学类（气候研究方向）","博士研究生",1]
[null,"福建省气候中心","省级","气候评价评估","业务","大气科学类（数值预报、模式产品应用方向）","硕士研究生及以上",1]
[null,"福建省气象信息中心","省级","系统保障","业务","大气科学类","硕士研究生及以上",1]
[null,"福建省气象信息中心","省级","系统保障","业务","计算机科学、电子信息工程、通信工程","硕士研究生及以上",1]
[null,"福建省海峡气象科学研究所","省级","人工影响天气","业务、科研","大气科学类（人影作业指挥方向）","硕士研究生及以上",1]
[null,"福建省海峡气象科学研究所","省级","天气研究","业务、科研","大气科学类（灾害性天气研究方向）","硕士研究生及以上",2]
[null,"福建省气象局机关服务中心（福建省气象局财务核算中心）","省级","财务会计","业务","会计（学）、财务管理","硕士研究生及以上",1]
[null,"福建省气象局机关服务中心（福建省气象局财务核算中心）","省级","审计","业务","会计与审计学、审计学、会计（财务）电算化","硕士研究生及以上",1]
[null,"福建省气象宣传科普教育中心","省级","气象宣传","业务","新闻学、传播学、新闻采编与制作、信息传播与策划","硕士研究生及以上",1]
[null,"福建省气象宣传科普教育中心","省级","气象科普","业务","大气科学类","硕士研究生及以上",1]
[null,"福建省气象宣传科普教育中心","省级","气象培训","业务","大气科学类","硕士研究生及以上",1]
[null,"厦门市气象台","市级","预报服务","业务","大气科学类（预报服务方向）","硕士研究生及以上",1]
[null,"厦门市气象台","市级","预报服务","业务","大气科学类（雷达应用方向）","硕士研究生及以上",1]
[null,"厦门市气象台","市级","技术保障","业务","电子信息工程、通信工程、通信技术、信息与通信工程、通信与电子工程","硕士研究生及以上",1]
[null,"厦门市气象服务中心","市级","预报服务","业务","大气科学类（预报服务方向）","硕士研究生及以上",1]
[null,"福州市气象台","市级","预报预警","业务","大气科学类（预报服务方向）","硕士研究生及以上",2]
[null,"福州市气象服务中心","市级","气象服务","业务","大气科学类（预报服务方向）","硕士研究生及以上",1]
[null,"福州农业气象试验站","县级","综合业务","业务","大气科学、气象学、应用气象学","硕士研究生及以上",1]
[null,"福州市连江县气象局","县级","综合业务","业务","大气科学、气象学、应用气象学","硕士研究生及以上",1]
[null,"福州市连江县气象局","县级","综合业务","业务","大气科学、气象学、应用气象学","本科及以上",1]
[null,"福州市闽清县气象局","县级","综合业务","业务","大气科学、气象学、应用气象学","本科及以上",1]
[null,"漳州市气象台","市级","预报服务","业务","大气科学类（预报服务方向）","硕士研究生及以上",2]
[null,"漳州市云霄县气象局","县级","综合业务","业务","大气科学、气象学、应用气象学","本科及以上",2]
[null,"漳州市诏安县气象局","县级","综合业务","业务","大气科学、气象学、应用气象学","本科及以上",1]
[null,"漳州市南靖县气象局","县级","综合业务","业务","大气科学、气象学、应用气象学","本科及以上",1]
[null,"漳州市平和县气象局","县级","综合业务","业务","大气科学、气象学、应用气象学","本科及以上",1]
[null,"漳州市华安县气象局","县级","综合业务","业务","大气科学、气象学、应用气象学","本科及以上",1]
[null,"漳州市龙文区气象局","县级","综合业务","业务","大气科学、气象学、应用气象学","本科及以上",1]
[null,"泉州市气象台","市级","预报服务","业务","大气科学类（预报服务方向）","硕士研究生及以上",2]
[null,"泉州市南安市气象局","县级","综合业务","业务","大气科学、气象学、应用气象学","本科及以上",1]
[null,"泉州市永春县气象局","县级","综合业务","业务","大气科学、气象学、应用气象学","本科及以上",2]
[null,"泉州市德化县气象局","县级","综合业务","业务","大气科学、气象学、应用气象学","本科及以上",1]
[null,"泉州市惠安县气象局","县级","综合业务","业务","大气科学、气象学、应用气象学","本科及以上",1]
[null,"莆田市气象台","市级","预报服务","业务","大气科学类（预报服务方向）","硕士研究生及以上",1]
[null,"莆田市仙游县气象局","县级","综合业务","业务","大气科学、气象学、应用气象学","本科及以上",1]
[null,"莆田市秀屿区气象局","县级","综合业务","业务","大气科学、气象学、应用气象学","本科及以上",2]
[null,"三明市气象台","市级","预报服务","业务","大气科学类（预报服务方向）","硕士研究生及以上",1]
[null,"三明市大田县气象局","县级","综合业务","业务","大气科学、气象学、应用气象学","本科及以上",1]
[null,"三明市大田县气象局","县级","综合业务","业务","通信工程、电子信息工程、数学与应用数学","本科及以上",1]
[null,"三明市尤溪县气象局","县级","综合业务","业务","大气科学、气象学、应用气象学","本科及以上",1]
[null,"三明市将乐县气象局","县级","综合业务","业务","大气科学、气象学、应用气象学","本科及以上",1]
[null,"三明市泰宁县气象局","县级","综合业务","业务","大气科学、气象学、应用气象学","本科及以上",1]
[null,"三明市建宁县气象局","县级","综合业务","业务","大气科学、气象学、应用气象学","本科及以上",1]
[null,"三明市宁化县气象局","县级","综合业务","业务","大气科学、气象学、应用气象学","本科及以上",1]
[null,"三明市清流县气象局","县级","综合业务","业务","大气科学、气象学、应用气象学","本科及以上",1]
[null,"三明市明溪县气象局","县级","综合业务","业务","大气科学、气象学、应用气象学","本科及以上",1]
[null,"三明天气雷达站","县级","技术保障","业务","通信工程、电子信息工程、电子与信息技术","本科及以上",1]
[null,"南平市气象台","市级","预报服务","业务","大气科学、气象学、应用气象学","本科及以上",2]
[null,"南平市气象局财务核算中心","市级","财务会计","业务","会计（学）、财务管理","本科及以上",1]
[null,"南平市武夷山市气象局","县级","综合业务","业务","大气科学、气象学、应用气象学","本科及以上",1]
[null,"南平市政和县气象局","县级","综合业务","业务","大气科学、气象学、应用气象学","本科及以上",1]
[null,"南平市政和县气象局","县级","综合业务","业务","通信工程、电子信息工程、电子与信息技术","本科及以上",1]
[null,"南平市浦城县气象局","县级","综合业务","业务","大气科学、气象学、应用气象学","本科及以上",1]
[null,"南平市建瓯市气象局","县级","综合业务","业务","大气科学、气象学、应用气象学","本科及以上",1]
[null,"南平市光泽县气象局","县级","综合业务","业务","大气科学、气象学、应用气象学","本科及以上",1]
[null,"南平市光泽县气象局","县级","综合业务","业务","通信工程、电子信息工程、电子与信息技术","本科及以上",1]
[null,"南平市顺昌县气象局","县级","综合业务","业务","大气科学、气象学、应用气象学","本科及以上",1]
[null,"南平市顺昌县气象局","县级","综合业务","业务","通信工程、电子信息工程、电子与信息技术","本科及以上",1]
[null,"南平市邵武市气象局","县级","综合业务","业务","通信工程、电子信息工程、电子与信息技术","本科及以上",1]
[null,"龙岩市气象台","市级","预报服务","业务","大气科学类（预报服务方向）","硕士研究生及以上",1]
[null,"龙岩市气象局科技信息中心","市级","预报服务","业务","大气科学、气象学、应用气象学","本科及以上",1]
[null,"龙岩市长汀县气象局","县级","综合业务","业务","大气科学、气象学、应用气象学","本科及以上",1]
[null,"龙岩市武平县气象局","县级","综合业务","业务","大气科学、气象学、应用气象学","本科及以上",1]
[null,"龙岩市连城县气象局","县级","综合业务","业务","大气科学、气象学、应用气象学","本科及以上",1]
[null,"宁德市气象台","市级","预报服务","业务","大气科学类（预报服务方向）","硕士研究生及以上",2]
[null,"宁德市气象局财务核算中心","市级","财务会计","业务","会计（学）、财务管理","本科及以上",1]
[null,"宁德市柘荣县气象局","县级","综合业务","业务","大气科学、气象学、应用气象学","本科及以上",1]
[null,"宁德市周宁县气象局","县级","综合业务","业务","大气科学、气象学、应用气象学","本科及以上",1]
[null,"宁德市寿宁县气象局","县级","综合业务","业务","通信工程、电子信息工程、电子与信息技术","本科及以上",1]
[null,"宁德市福鼎市气象局","县级","综合业务","业务","大气科学、气象学、应用气象学","本科及以上",1]
[null,"宁德市霞浦县气象局","县级","综合业务","业务","大气科学、气象学、应用气象学","本科及以上",1]
[null,"宁德市霞浦县气象局","县级","财务会计","业务","会计（学）、财务管理","本科及以上",1]
[null,"福建省平潭综合实验区气象台","市级","预报服务","业务","大气科学类（预报服务方向）","硕士研究生及以上",1]
[null,"福建省平潭综合实验区气象局","市级","财务会计","业务","会计（学）、财务管理","本科及以上",1]
[null,"合计",{"$nulls":5},{"$f":"SUM(H482:H557)","v":85}]
["江西省气象局","江西省气象台","省级","预报业务","业务","大气科学或大气物理","博士研究生",1]
[null,"江西省气象台","省级","预报业务","业务","大气科学","硕士研究生及以上",1]
[null,"江西省气象台","省级","预报业务","业务","大气科学","本科生及以上",1]
[null,"江西省气候中心","省级","气候分析","业务","大气科学","硕士研究生及以上",1]
[null,"江西省气候中心","省级","气候分析","业务","大气科学","博士研究生",1]
[null,"江西省气象服务中心","省级","预报服务","业务","大气科学、应用气象","硕士研究生及以上",1]
[null,"江西省气象信息中心","省级","通信网络保障","业务","计算机科学与技术、计算机网络技术、网络工程","硕士研究生及以上",1]
[null,"江西省气象信息中心","省级","    业务","业务","大气科学或大气物理","硕士研究生及以上",1]
[null,"江西省气象科学研究所","省级","气候预测研究","科研","大气科学","博士研究生",1]
[null,"江西省气象科学研究所","省级","短时临近预报研究","科研","大气科学或气象学（雷达方向）","硕士研究生及以上",1]
[null,"江西省大气探测技术中心","省级","装备保障","业务","大气科学类","硕士研究生及以上",1]
[null,"南昌市气象局","市级","预报业务","业务","大气科学、农业气象、农学 ","本科及以上",1]
[null,"南昌市气象局","市级","预报探测","业务","大气科学或大气探测","本科及以上",1]
[null,"南昌市气象局","市级","财务管理","管理","财会类","硕士研究生及以上",1]
[null,"南昌县气象局","县级","综合业务","服务","大气科学或电子工程类专业","本科及以上",1]
[null,"安义县气象局","县级","综合业务","服务","大气科学类、计算机科学与技术、电子信息工程","本科及以上",1]
[null,"庐山气象局","县级","综合业务","业务","大气科学类","本科及以上",1]
[null,"修水县气象局","县级","综合业务","业务","大气科学类、计算机科学与技术、电子信息工程","本科及以上",1]
[null,"武宁县气象局","县级","综合业务","业务","大气科学类、计算机科学技术、电子通信类","本科及以上",1]
[null,"景德镇市气象局","市级","预报业务","业务","大气科学、农业气象、农学 ","硕士研究生及以上",1]
[null,"萍乡市气象局","市级","预报业务","业务","大气科学","硕士研究生及以上",1]
[null,"萍乡市气象局","市级","业务服务","业务","大气科学、农业气象、农学 ","本科及以上",1]
[null,"芦溪县气象局","县级","网络管理、装备保障","服务","大气科学类、计算机科学与技术、电子通信类","本科及以上",1]
[null,"上栗县气象局","县级","预报业务","业务","大气科学","本科及以上",1]
[null,"分宜县气象局","县级","综合业务","业务","大气科学","本科及以上",1]
[null,"鹰潭市气象局","市级","预报业务","业务","大气科学","硕士研究生及以上",1]
[null,"鹰潭市气象局","市级","农气业务 ","业务","大气科学、农业气象、农学 ","本科及以上",1]
[null,"会昌县气象局","县级","综合业务","业务","大气科学","本科及以上",1]
[null,"瑞金市气象局","县级","综合业务","业务","大气科学类","本科及以上",1]
[null,"信丰县气象局","县级","综合业务","业务","大气科学类","本科及以上",1]
[null,"上犹县气象局","县级","综合业务","业务","大气科学类、计算机科学与技术、电子通信类","本科及以上",1]
[null,"赣州市气象局","市级","气象预报","业务","大气科学、农业气象、农学","本科及以上",1]
[null,"上饶市气象局","市级","预报业务","业务","大气科学","硕士研究生及以上",1]
[null,"上饶市气象局","市级","预报业务","业务","大气科学","本科及以上",1]
[null,"铅山县气象局","县级","综合业务","业务","大气科学","本科及以上",1]
[null,"婺源县气象局","县级","综合业务","业务","大气科学","本科及以上",1]
[null,"宜春市气象局","市级","农气业务","业务","农业气象、农学","硕士研究生及以上",1]
[null,"宜春市气象局","市级","影视采编与制作","服务","新闻学","本科及以上",1]
[null,"丰城市气象局","县级","综合业务","业务","大气科学","本科及以上",1]
[null,"万载县气象局","县级","综合业务","业务","大气科学","本科及以上",1]
[null,"遂川县气象局","县级","综合业务","业务","大气科学、计算机科学与技术、电子通信类","本科及以上",1]
[null,"新干县气象局","县级","综合业务","业务","大气科学","本科及以上",1]
[null,"井冈山市气象局","县级","综合业务","业务","大气科学类、计算机科学与技术、电子通信类","本科及以上",1]
[null,"南丰县气象局","县级","农业气象","业务","大气科学、农业气象","本科及以上",1]
[null,"东乡县气象局","县级","综合业务","业务","大气科学","本科及以上",1]
[null,"广昌县气象局","县级","综合业务","业务","大气科学类、计算机科学与技术、电子通信类","本科及以上",1]
[null,"金溪县气象局","县级","综合业务","业务","大气科学","本科及以上",1]
[null,"南城县气象局","县级","综合业务","业务","大气科学","本科及以上",1]
[null,"黎川县气象局","县级","综合业务","业务","大气科学","本科及以上",1]
[null,"宜黄县气象局","县级","综合业务","业务","大气科学","本科及以上",1]
[null,"乐安县气象局","县级","综合业务","业务","大气科学","本科及以上",1]
[null,"合计",{"$nulls":5},{"$f":"SUM(H559:H609)","v":51}]
["山东省气象局","山东省气象台","省级","预报","业务","大气科学","博士研究生",1]
[null,"山东省气象台","省级","预报","业务","大气科学","硕士研究生及以上",1]
[null,"山东省气象局大气探测技术保障中心","省级","综合业务","业务","大气探测","硕士研究生及以上",1]
[null,"山东省气象科学研究所","省级","数值预报","业务","大气科学","博士研究生",1]
[null,"山东省气象局财务中心","省级","会计","管理","财经类","硕士研究生及以上",2]
[null,"济南章丘市气象局","县级","综合业务","业务","大气科学","本科及以上",1]
[null,"青岛黄岛区气象局","县级","综合业务","业务","大气科学","硕士研究生及以上",1]
[null,"青岛胶州市气象局","县级","综合业务","业务","大气科学","硕士研究生及以上",1]
[null,"淄博市气象局","市级","气象业务","业务","大气科学","硕士研究生及以上",1]
[null,"淄博博山区气象局","县级","综合业务","业务","大气科学","本科及以上",1]
[null,"淄博周村区气象局","县级","综合业务","业务","大气科学","本科及以上",1]
[null,"枣庄市气象局","市级","财务","管理","会计学","本科及以上",1]
[null,"枣庄峄城区气象局","县级","测报","业务","大气科学","本科及以上",1]
[null,"东营市气象台","市级","天气预报","业务","气象学","硕士研究生及以上",1]
[null,"东营广饶县气象局","县级","综合气象观测","业务","大气科学","本科及以上",2]
[null,"烟台市气象局","市级","综合业务","业务","大气科学","硕士研究生及以上",1]
[null,"烟台莱阳市气象局","县级","农气","业务","农业气象","本科及以上",1]
[null,"烟台海阳市气象局","县级","综合业务","业务","大气科学","本科及以上",1]
[null,"烟台福山区气象局","县级","防雷","业务","电子信息工程","本科及以上",1]
[null,"烟台栖霞市气象局","县级","综合业务","业务","大气科学","本科及以上",1]
[null,"烟台龙口市气象局","县级","综合业务","业务","大气探测","本科及以上",1]
[null,"烟台蓬莱市气象局","县级","综合业务","业务","大气科学","本科及以上",1]
[null,"潍坊寒亭区气象局","县级","气象台","业务","大气科学","本科及以上",1]
[null,"潍坊青州市气象局","县级","气象台","业务","大气科学","本科及以上",1]
[null,"潍坊安丘市气象局","县级","气象台","业务","大气科学","本科及以上",1]
[null,"潍坊临朐县气象局","县级","气象台","业务","大气科学","本科及以上",1]
[null,"潍坊昌邑市气象局","县级","气象台","业务","大气科学","本科及以上",1]
[null,"潍坊昌乐县气象局","县级","气象台","业务","大气科学","本科及以上",1]
[null,"济宁市气象局","市级","气象台","业务","大气科学及相关专业","硕士研究生及以上",1]
[null,"济宁嘉祥县气象局","县级","综合气象业务","业务","大气科学及相关专业","本科及以上",1]
[null,"泰安市气象台","市级","短期预报","业务","大气科学及相关专业","硕士研究生及以上",1]
[null,"泰安东平县气象局","县级","综合气象业务","业务","大气科学及相关专业","本科及以上",1]
[null,"威海乳山市气象局","县级","业务岗位","业务","大气科学","本科及以上",1]
[null,"威海石岛气象台","县级","业务岗位","业务","电子通信或通信工程","本科及以上",1]
[null,"威海成山头气象站","县级","业务岗位","业务","大气科学","本科及以上",1]
[null,"临沂郯城县气象局","县级","综合业务","业务","大气科学","本科及以上",2]
[null,"临沂费县气象局","县级","综合业务","业务","大气科学","本科及以上",1]
[null,"临沂蒙阴县气象局","县级","综合业务","业务","大气科学","本科及以上",1]
[null,"临沂沂南县气象局","县级","综合业务","业务","大气科学","本科及以上",1]
[null,"临沂莒南县气象局","县级","综合业务","业务","大气科学","本科及以上",1]
[null,"临沂莒南县气象局","县级","综合业务","业务","电子信息工程","本科及以上",1]
[null,"德州市气象台","市级","天气预报","业务","大气科学","硕士研究生及以上",1]
[null,"德州乐陵市气象局","县级","综合业务","业务","大气科学","本科及以上",1]
[null,"德州庆云县气象局","县级","综合业务","业务","大气科学","本科及以上",1]
[null,"德州市陵城区气象局","县级","综合业务","业务","大气科学","本科及以上",1]
[null,"聊城高唐县气象局","县级","综合业务岗位","业务","大气科学","本科及以上",1]
[null,"聊城冠县气象局","县级","综合业务岗位","业务","电子信息工程或大气科学","本科及以上",1]
[null,"聊城茌平县气象局","县级","综合业务岗位","业务","大气科学或农业气象","本科及以上",1]
[null,"聊城临清市气象局","县级","综合业务岗位","业务","电子信息工程或大气科学","本科及以上",1]
[null,"滨州无棣县气象局","县级","综合气象业务","业务","大气科学及相关专业","本科及以上",1]
[null,"滨州沾化区气象局","县级","综合气象业务","业务","大气科学及相关专业","本科及以上",1]
[null,"滨州阳信县气象局","县级","综合气象业务","业务","大气科学及相关专业","本科及以上",1]
[null,"菏泽市定陶区气象局","县级","综合气象业务","业务","大气科学","本科及以上",1]
[null,"菏泽郓城县气象局","县级","综合气象业务","业务","大气科学","本科及以上",1]
[null,"菏泽单县气象局","县级","综合气象业务","业务","大气科学","本科及以上",1]
[null,"合计",{"$nulls":5},{"$f":"SUM(H611:H665)","v":58}]
["河南省气象局","河南省气象台","省级","天气预报","业务","大气科学","博士研究生",1]
[null,"河南省气象台","省级","天气预报","业务","大气科学","硕士研究生及以上",1]
[null,"河南省气象信息网络与技术保障中心","省级","运行监控","业务","电子与信息类","硕士研究生及以上",1]
[null,"河南省气象信息网络与技术保障中心","省级","气象装备保障","业务","电子与信息类","硕士研究生及以上",1]
[null,"河南省气象信息网络与技术保障中心","省级","质量控制、审核","业务","大气科学类","硕士研究生及以上",1]
[null,"河南省气象服务中心","省级","产品研发","业务","大气科学类","硕士研究生及以上",1]
[null,"河南省气象科学研究所","省级","农气业务与服务","业务","农业气象或农学","博士研究生",1]
[null,"河南省气象科学研究所","省级","遥感业务与服务","业务","遥感与应用","硕士研究生及以上",1]
[null,"河南省气象培训中心","省级","专职教师","业务","大气科学类、地球科学相关类","硕士研究生及以上",1]
[null,"开封市气象科技服务中心","市级","影视服务","服务","广播影视编导","本科及以上",1]
[null,"洛阳市气象台","市级","综合业务","业务","大气科学","硕士研究生及以上",1]
[null,"洛阳栾川县气象局","县级","综合业务","业务","大气科学类","本科及以上",1]
[null,"洛阳嵩县气象局","县级","综合业务","业务","大气科学类","本科及以上",1]
[null,"洛阳汝阳县气象局","县级","综合业务","业务","大气科学类","本科及以上",1]
[null,"洛阳孟津县气象局","县级","综合业务","业务","大气科学","本科及以上",1]
[null,"洛阳洛宁县气象局","县级","综合业务","业务","大气科学类、电子与信息类","本科及以上",1]
[null,"洛阳宜阳县气象局","县级","综合业务","业务","大气科学类","本科及以上",1]
[null,"安阳内黄县气象局","县级","综合业务","业务","大气科学类","本科及以上",1]
[null,"安阳林州市气象局","县级","综合业务","业务","大气科学类","本科及以上",1]
[null,"鹤壁市气象台","市级","预报业务","业务","大气科学","硕士研究生及以上",1]
[null,"新乡卫辉市气象局","县级","综合业务","业务","大气科学类、电子与信息类","本科及以上",1]
[null,"焦作沁阳县气象局","县级","综合业务","业务","大气科学类、电子与信息类","本科及以上",1]
[null,"焦作修武县气象局","县级","综合业务","业务","大气科学类、电子与信息类","本科及以上",1]
[null,"濮阳市气象台","市级","预报业务","业务","大气科学","硕士研究生及以上",1]
[null,"濮阳南乐县气象局","县级","综合业务","业务","大气科学类","本科及以上",1]
[null,"许昌市气象局财务核算中心","市级","财务管理","管理","会计学","本科及以上",1]
[null,"许昌鄢陵县气象局","县级","综合业务","业务","大气科学类、电子与信息类","本科及以上",1]
[null,"漯河舞阳县气象局","县级","综合业务","业务","大气科学类、电子与信息类","本科及以上",1]
[null,"三门峡市气象局财务核算中心","市级","财务管理","管理","财经类","本科及以上",1]
[null,"三门峡气象科技服务中心","市级","影视服务","服务","播音与主持艺术","本科及以上",1]
[null,"三门峡卢氏县气象局","县级","综合业务","业务","大气科学类、电子与信息类","本科及以上",1]
[null,"商丘市气象台","市级","预报业务","业务","大气科学","硕士研究生及以上",1]
[null,"商丘气象站","县级","综合业务","业务","农业气象或农学","硕士研究生及以上",1]
[null,"商丘柘城县气象局","县级","综合业务","业务","大气科学类、电子与信息类","本科及以上",1]
[null,"信阳息县气象局","县级","综合业务","业务","大气科学类","本科及以上",1]
[null,"信阳商城县气象局","县级","综合业务","业务","大气科学类、电子与信息类","本科及以上",1]
[null,"信阳光山县气象局","县级","综合业务","业务","大气科学类、电子与信息类","本科及以上",1]
[null,"信阳淮滨县气象局","县级","综合业务","业务","大气科学类","本科及以上",1]
[null,"信阳新县气象局","县级","综合业务","业务","大气科学类","本科及以上",1]
[null,"周口市气象台","市级","预报业务","业务","大气科学","硕士研究生及以上",1]
[null,"周口西华县气象局","县级","综合业务","业务","大气科学类、电子与信息类","本科及以上",1]
[null,"周口郸城县气象局","县级","综合业务","业务","大气科学类、电子与信息类","本科及以上",1]
[null,"驻马店市气象局财务核算中心","市级","财务管理","管理","会计","本科及以上",1]
[null,"济源市气象台","市级","预报业务","业务","大气科学","硕士研究生及以上",1]
[null,"巩义市气象局","县级","综合业务","业务","大气科学","本科及以上",1]
[null,"滑县气象局","县级","综合业务","业务","大气科学类","本科及以上",1]
[null,"长垣县气象局","县级","综合业务","业务","大气科学类","本科及以上",1]
[null,"固始县气象局","县级","综合业务","业务","大气科学","本科及以上",1]
[null,"固始县气象局","县级","综合业务","业务","农业气象","本科及以上",1]
[null,"新蔡县气象局","县级","综合业务","业务","大气科学类、电子与信息类","本科及以上",1]
[null,"合计",{"$nulls":5},{"$f":"SUM(H667:H716)","v":50}]
["湖北省气象局","中国气象局武汉暴雨研究所","省级","暴雨研究","科研","大气探测(雷达气象方向)、气象学(动力气象、数值预报方向)","博士研究生",4]
[null,"武汉区域气候中心","省级","预测与评估","业务","大气科学类","硕士研究生及以上",1]
[null,"湖北省公众气象服务中心","省级","气象服务","服务","影视节目制作","硕士研究生及以上",1]
[null,"湖北省气象局财务核算中心","省级","财务","管理","财会","硕士研究生及以上",2]
[null,"武汉市气象台","市级","天气预报","业务","大气科学类","博士研究生",1]
[null,"汉南区气象台","县级","天气预报","业务","大气科学类","硕士研究生及以上",1]
[null,"巴东县气象台","县级","综合业务","业务","大气科学类","本科及以上",1]
[null,"鹤峰县气象台","县级","综合业务","业务","大气科学类","本科及以上",1]
[null,"咸丰县气象台","县级","综合业务","业务","大气科学类","本科及以上",1]
[null,"郧西县气象台","县级","综合业务","业务","大气科学类","本科及以上",1]
[null,"竹溪县气象台","县级","综合业务","业务","大气科学类","本科及以上",1]
[null,"房县气象台","县级","综合业务","业务","大气科学类","本科及以上",1]
[null,"宜昌市气象台","市级","天气预报","业务","大气科学类","硕士研究生及以上",1]
[null,"宜昌国家基本气象站","市级","综合业务","业务","大气科学类","硕士研究生及以上",1]
[null,"兴山县气象台","县级","综合业务","业务","大气科学类","本科及以上",1]
[null,"五峰土家族自治县气象台","县级","综合业务","业务","大气科学类","本科及以上",1]
[null,"远安县气象台","县级","综合业务","业务","大气科学类","本科及以上",1]
[null,"宜都市气象台","县级","综合业务","业务 ","大气科学类","本科及以上",2]
[null,"长阳土家族自治县气象台","县级","综合业务","业务","大气科学类","本科及以上",1]
[null,"襄阳市气象台","市级","天气预报","业务","大气科学类","硕士研究生及以上",1]
[null,"老河口市气象服务中心","县级","气象服务","服务","大气科学类","本科及以上",1]
[null,"钟祥市气象台","县级","综合业务","业务","大气科学类","本科及以上",1]
[null,"沙洋县气象台","县级","综合业务","业务","大气科学类","本科及以上",1]
[null,"荆州市气象台","市级","天气预报","业务","大气科学类","硕士研究生及以上",1]
[null,"荆州市气象局机关服务中心","市级","财务","管理","财会","本科及以上",1]
[null,"松滋市气象台","县级","综合业务","业务","大气科学类","本科及以上",1]
[null,"石首市气象台","县级","综合业务","业务","大气科学类","本科及以上",1]
[null,"监利县气象台","县级","综合业务","业务","大气科学类","本科及以上",1]
[null,"洪湖市气象台","县级","综合业务","业务","大气科学类","本科及以上",1]
[null,"广水市气象台","县级","综合业务","业务","大气科学类","本科及以上",1]
[null,"随县气象台","县级","信息保障","业务","电子与信息类","本科及以上",1]
[null,"孝感市气象台","市级","天气预报","业务","大气科学类","硕士研究生及以上",1]
[null,"大悟县气象台","县级","综合业务","业务","大气科学类","本科及以上",1]
[null,"云梦县气象台","县级","气象保障","业务","电子与信息类","本科及以上",1]
[null,"汉川市气象台","县级","综合业务","业务","大气科学类","本科及以上",1]
[null,"嘉鱼县气象台","县级","综合业务","业务","大气科学类","本科及以上",1]
[null,"赤壁市气象台","县级","综合业务","业务","大气科学类","本科及以上",1]
[null,"通城县气象台","县级","综合业务","业务","大气科学类","本科及以上",1]
[null,"黄冈市气象台","市级","预报服务","业务","大气科学类","硕士研究生及以上",1]
[null,"黄冈市气象局机关服务中心","市级","财务","管理","财会","本科及以上",1]
[null,"红安县气象台","县级","综合业务","业务","大气科学类","本科及以上",1]
[null,"红安县气象服务中心","县级","气象服务","服务","电子与信息类","本科及以上",1]
[null,"浠水县气象台","县级","综合业务","业务","大气科学类","本科及以上",1]
[null,"黄石市气象台","市级","综合业务","业务","大气科学类","硕士研究生及以上",1]
[null,"天门市气象台","县级","综合业务","业务","大气科学类","本科及以上",1]
[null,"合计",{"$nulls":5},{"$f":"SUM(H718:H762)","v":50}]
["湖南省气象局","湖南省气象台","省级","天气预报","业务","气象学","博士研究生",1]
[null,"湖南省气象台","省级","天气预报","业务","气象学","硕士研究生及以上",2]
[null,"湖南省气候中心","省级","气候预测","业务","气象学","硕士研究生及以上",1]
[null,"株洲醴陵市气象局","县级","综合气象业务","业务","大气科学类","大学本科及以上",1]
[null,"株洲炎陵县气象局","县级","综合气象业务","业务","大气科学类","大学本科及以上",1]
[null,"湘潭市湘乡市气象局","县级","综合气象业务","业务","应用气象","大学本科及以上",1]
[null,"湘潭市韶山市气象局","县级","业务服务岗位","业务","计算机及相关","大学本科及以上",1]
[null,"衡阳市气象局气象台","市级","预报服务","业务","气象学","硕士研究生及以上",1]
[null,"衡阳市气象局气象台","市级","预报服务","业务","气象学","硕士研究生及以上",1]
[null,"衡阳市农业气象实验站","县级","农气服务","业务","气象及相关专业","硕士研究生及以上",1]
[null,"衡阳南岳区气象局","县级","综合气象业务","业务","大气科学类","大学本科及以上",1]
[null,"衡阳市气象局财务核算中心","市级","财会","管理","会计学","大学本科及以上",1]
[null,"邵阳市气象局气象台","市级","预报服务","业务","气象学","硕士研究生及以上",1]
[null,"邵阳市气象局财务核算中心","市级","财会","管理","会计学","大学本科及以上",1]
[null,"邵阳新邵县气象局","县级","综合气象业务","业务","计算机及相关","大学本科及以上",1]
[null,"邵阳隆回县气象局","县级","综合气象业务","业务","气象及相关专业","大学本科及以上",1]
[null,"邵阳洞口县气象局","县级","综合气象业务","业务","大气科学类","大学本科及以上",1]
[null,"邵阳城步县气象局","县级","综合气象业务","业务","大气科学类","大学本科及以上",1]
[null,"岳阳华容县气象局","县级","综合气象业务","业务","气象及相关专业","大学本科及以上",1]
[null,"岳阳临湘市气象局","县级","综合气象业务","业务","气象及相关专业","大学本科及以上",1]
[null,"益阳南县气象局","县级","综合气象业务","业务","大气科学及相关专业","大学本科及以上",1]
[null,"益阳赫山区气象局","县级","综合气象业务","业务","大气科学及相关专业","大学本科及以上",1]
[null,"常德市气象局气象台","市级","预报服务","业务","气象学","硕士研究生及以上",1]
[null,"常德汉寿县气象局","县级","综合气象业务","业务","大气科学及相关专业","大学本科及以上",1]
[null,"常德澧县气象局","县级","综合气象业务","业务","大气科学及相关专业","大学本科及以上",1]
[null,"娄底冷水江市气象局","县级","预报服务","业务","大气科学类","大学本科及以上",1]
[null,"郴州汝城县气象局","县级","综合气象业务","业务","大气科学类","大学本科及以上",1]
[null,"郴州临武县气象局","县级","综合气象业务","业务","大气科学类","大学本科及以上",1]
[null,"郴州桂东县气象局","县级","综合气象业务","业务","计算机及相关","大学本科及以上",1]
[null,"郴州市气象局财务核算中心","市级","财会","管理","会计学","大学本科及以上",1]
[null,"永州道县气象局","县级","综合气象业务","业务","大气科学类","大学本科及以上",1]
[null,"永州双牌县气象局","县级","综合气象业务","业务","大气科学类","硕士研究生及以上",1]
[null,"永州蓝山县气象局","县级","综合气象业务","业务","计算机及相关","大学本科及以上",1]
[null,"怀化市气象局财务核算中心","市级","财会","管理","会计学","大学本科及以上",1]
[null,"怀化芷江县气象局","县级","综合气象业务","业务","大气科学类","大学本科及以上",1]
[null,"怀化通道县气象局","县级","综合气象业务","业务","大气科学类","大学本科及以上",1]
[null,"怀化市靖州气象局","县级","综合气象业务","业务","计算机及相关","大学本科及以上",1]
[null,"怀化麻阳县气象局","县级","综合气象业务","业务","大气科学类","大学本科及以上",1]
[null,"怀化溆浦县气象局","县级","综合气象业务","业务","大气科学类","大学本科及以上",1]
[null,"湘西吉首市气象局","县级","综合气象业务","业务","气象学","硕士研究生及以上",1]
[null,"湘西泸溪县气象局","县级","综合气象业务","业务","计算机及相关","本科及以上专业",1]
[null,"湘西永顺县气象局","县级","综合气象业务","业务","气象及相关专业   ","本科及以上专业",1]
[null,"湘西花垣县气象局","县级","综合气象业务","业务","气象及相关专业   ","本科及以上专业",1]
[null,"湘西凤凰县气象局","县级","综合气象业务","业务","气象及相关专业   ","本科及以上专业",1]
[null,"合计",{"$nulls":5},{"$f":"SUM(H764:H807)","v":45}]
["广东省气象局","中国气象局广州热带海洋气象研究所","省级","数值预报重点实验室","业务","大气科学类","硕士研究生及以上",2]
[null,"中国气象局广州热带海洋气象研究所","省级","热带环境气象","业务","大气科学类","硕士研究生及以上",2]
[null,"中国气象局广州热带海洋气象研究所","省级","海洋气象","业务","大气科学类","硕士研究生及以上",1]
[null,"中国气象局广州热带海洋气象研究所","省级","云降水物理","业务","大气科学类","硕士研究生及以上",1]
[null,"中国气象局广州热带海洋气象研究所","省级","预报","业务","大气科学类","硕士研究生及以上",3]
[null,"中国气象局广州热带海洋气象研究所","省级","系统开发","业务","应用数学、计算数学、基础数学","硕士研究生及以上",1]
[null,"广东省气象探测数据中心","省级","大型专用设备维修维护岗","业务","大气科学类（大气探测方向）、电子与信息技术、信息与电子科学","硕士研究生及以上",1]
[null,"广东省气象探测数据中心","省级","探测数据质控与评估岗","业务","大气科学类（大气探测方向）、电子信息工程、软件工程","硕士研究生及以上",1]
[null,"广东省气象探测数据中心","省级","信息系统维护与技术开发岗","业务","大气科学类、计算机科学与技术、计算机及应用","硕士研究生及以上",1]
[null,"广东省气象探测数据中心","省级","资料加工分析岗","业务","大气科学类、计算机及应用","硕士研究生及以上",1]
[null,"广东省气象探测数据中心","省级","教育培训管理岗","业务","大气科学类、软件工程","硕士研究生及以上",1]
[null,"广东省气候中心","省级","气候评估岗","业务","防灾减灾工程及防护工程专业或大气科学专业","硕士研究生及以上",1]
[null,"广东省气候中心","省级","综合办公室","管理","会计学","本科及以上",1]
[null,"广东省生态气象中心","省级","农村生态室","业务","应用气象或生态学","硕士研究生及以上",1]
[null,"广东省气象公共服务中心","省级","公众服务","业务","大气科学","硕士研究生及以上",1]
[null,"广东省气象公共服务中心","省级","产品研发","业务","气象信息技术","硕士研究生及以上",1]
[null,"广东省气象公共服务中心","省级","系统开发","业务","软件工程","硕士研究生及以上",1]
[null,"广东省气象公共安全技术支持中心","省级","会计","业务","会计学","本科及以上",1]
[null,"广东省气象局机关服务中心","省级","电力保障岗","业务","电气工程及其自动化、光电信息科学与工程","本科及以上",1]
[null,"广东省气象局机关服务中心","省级","信息管理","业务","计算机及应用、计算机科学与技术","本科及以上",1]
[null,"广东省气象局机关服务中心","省级","会计","服务","会计","本科及以上",1]
[null,"广州市海珠区气象局","县级","预报","业务","大气科学类","本科及以上",1]
[null,"汕头市海洋台","市级","海洋气象服务","业务","大气科学","本科及以上",1]
[null,"汕头市气象公共安全技术支持中心","市级","法律协助","业务","法学","本科",1]
[null,"汕头市潮阳区气象局","县级","天气预报","业务","大气科学","本科及以上",1]
[null,"韶关市气象局","市级","生态气象业务","业务","生态学","硕士研究生及以上",1]
[null,"韶关市气象局","市级","设备维护","业务","计算机科学与技术","本科及以上",1]
[null,"韶关始兴县气象局","县级","预报","业务","大气科学类","本科及以上",1]
[null,"韶关仁化县气象局","县级","财务","业务","大气科学类","本科及以上",1]
[null,"韶关新丰县气象局","县级","预报","业务","大气科学类","本科及以上",2]
[null,"河源连平县气象局","县级","气象业务","业务","大气科学","本科及以上",1]
[null,"河源龙川县气象局","县级","气象业务","业务","大气科学","本科及以上",1]
[null,"梅州市气象局","市级","预报","业务","大气科学类","硕士",1]
[null,"梅州丰顺县气象局","县级","预报","业务","大气科学类","本科",1]
[null,"梅州大埔县气象局","县级","预报","业务","大气科学类","本科",1]
[null,"汕尾市海丰县气象局","县级","专业气象台","业务","大气科学","本科及以上",1]
[null,"汕尾市陆丰市气象局","县级","专业气象台","业务","大气科学","本科及以上",2]
[null,"东莞市气象局","市级","天气预报","业务","气象学","硕士研究生及以上",1]
[null,"中山市气象公共安全技术支持中心","市级","计算机及网络维护","业务","计算机科学与技术、信息安全、软件工程","本科及以上",1]
[null,"江门台山市气象局","县级","气象服务","业务","大气科学类","本科及以上",2]
[null,"江门恩平市气象局","县级","气象服务","业务","大气科学类","硕士研究生及以上",1]
[null,"江门鹤山市气象局","县级","预报服务","业务","大气科学类","硕士研究生及以上",1]
[null,"阳江市气象局","市级","业务","业务","大气科学","本科及以上",2]
[null,"阳江市气象局","市级","服务","服务","大气科学","本科及以上",1]
[null,"湛江市气象局","市级","气象业务","业务","大气科学类","硕士研究生及以上",1]
[null,"湛江市气象局","市级","气象业务","业务","大气科学","本科及以上",1]
[null,"湛江徐闻县气象局","县级","气象业务","业务","大气科学类","本科及以上",2]
[null,"湛江徐闻县气象局","县级","气象业务","业务","计算机科学与技术","本科及以上",1]
[null,"湛江雷州市气象局","县级","气象业务","业务","大气科学类","本科及以上",2]
[null,"湛江廉江市气象局","县级","气象业务","业务","大气科学类","本科及以上",2]
[null,"湛江吴川市气象局","县级","气象业务","业务","大气科学类","本科及以上",2]
[null,"茂名电白区气象局","县级","预测预报","业务","大气科学","本科及以上",2]
[null,"肇庆高要区气象局","县级","预报","业务","大气科学类","硕士研究生及以上",1]
[null,"肇庆高要区气象局","县级","预报","业务","大气科学类","本科及以上",1]
[null,"肇庆广宁县气象局","县级","预报","业务","大气科学类","本科及以上",2]
[null,"肇庆怀集县气象局","县级","预报服务","业务","大气科学类","本科及以上",1]
[null,"肇庆德庆县气象局","县级","预报服务、预警信息发布","业务","大气科学类","本科及以上",1]
[null,"清远连南瑶族自治县气象局","县级","预报预警","业务","大气科学","本科及以上",1]
[null,"清远市气象局","市级","预报预警","业务","气象学","硕士研究生及以上",2]
[null,"潮州饶平县气象局","县级","综合业务岗","业务","大气科学类","本科及以上",1]
[null,"揭阳揭西县气象局","县级","预报服务业务","业务","大气科学类","本科及以上",2]
[null,"合计",{"$nulls":5},{"$f":"SUM(H809:H869)","v":77}]
["广西壮族自治区气象局","广西区气候中心","省局直属单位","科研业务岗","科研、业务","地图学与地理信息系统（GIS）专业","硕士及以上",1]
[null,"广西区气象信息中心","省局直属单位","气象资料数据服务","业务","计算机","硕士及以上",1]
[null,"广西区气象信息中心","省局直属单位","信息网络运维保障","业务","自动控制","硕士及以上",1]
[null,"广西气象减灾研究所","省局直属单位","遥感","业务","遥感或地理信息","博士研究生",1]
[null,"广西区气象技术装备中心","省局直属单位","装备保障岗","业务","电子工程（080703）","硕士及以上",1]
[null,"区气象服务中心","省局直属单位","专业预报服务","业务","大气科学","硕士及以上",2]
[null,"广西区气象培训中心","省局直属单位","教育培训","业务","大气科学","硕士及以上",1]
[null,"南宁市气象局","市级","气象业务系统开发","科研","计算机、软件工程","硕士及以上",1]
[null,"宾阳县气象局","县级","综合观测","业务","信息科学与工程","本科及以上",1]
[null,"横县气象局","县级","综合观测","业务","大气科学类","本科及以上",1]
[null,"上林县气象局","县级","综合观测","业务","大气科学类","本科及以上",1]
[null,"柳州市气象局","市级","预测预报","业务","大气科学","硕士及以上",1]
[null,"南宁市气象局","市级","气象新闻宣传","业务","播音、主持","本科及以上",2]
[null,"柳州市气象局","市级","公共气象服务\n","业务","广播电视新闻","本科及以上"]
[null,"北海市气象局","市级","天气预报节目主持","服务","广播影视","本科及以上"]
[null,"贺州市气象局","市级","气象公共服务","服务","广播影视类","本科及以上"]
[null,"柳州市气象局","市级","会计","管理","会计","本科及以上",1]
[null,"沙塘农业气象试验站","县级","综合业务","业务","应用气象","硕士及以上",1]
[null,"三江县气象局","县级","综合业务","业务","大气科学类","本科及以上",1]
[null,"融安县气象局","县级","综合业务","业务","大气科学类","本科及以上",1]
[null,"融安县气象局","县级","综合业务","业务","大气科学、应用气象","本科及以上",1]
[null,"融水县气象局","县级","综合业务","业务","大气科学类","本科及以上",1]
[null,"阳朔县气象局","县级","气象监测预警岗","业务","大气科学","本科及以上",1]
[null,"阳朔县气象局","县级","气象综合观测岗","业务","计算机科学与技术","本科及以上",1]
[null,"灌阳县气象局","县级","气象监测预警岗","业务","大气科学类","本科及以上",1]
[null,"灌阳县气象局","县级","气象综合观测岗","业务","电子与信息类其他专业","本科及以上",1]
[null,"资源县气象局","县级","气象监测预警岗","业务","大气科学类其他专业","本科及以上",1]
[null,"龙胜县气象局","县级","气象监测预警岗","业务","大气科学类","本科及以上",1]
[null,"龙胜县气象局","县级","气象综合观测岗","业务","计算机科学与技术","本科及以上",1]
[null,"雁山农气站","县级","生态与农气观测岗","业务","大气科学类","硕士及以上",1]
[null,"桂林市气象局","市级","天气预报岗","业务","大气科学","硕士及以上",1]
[null,"梧州市气象局","市级","财务管理","管理","会计","本科及以上",1]
[null,"梧州市气象局","市级","天气预报","业务","大气科学","本科及以上",1]
[null,"蒙山县气象局","县级","气象业务","业务","大气科学","本科及以上",1]
[null,"玉林市气象局","市级","天气预报","业务","大气科学","硕士及以上",1]
[null,"容县气象局","县级","综合业务","业务","电子与信息类","本科及以上",1]
[null,"百色市气象局","市级","气象台预报员","业务","大气科学","本科及以上",1]
[null,"百色市气象局","市级","探测中心测报员","业务","大气科学（大气探测）","本科及以上",1]
[null,"乐业县气象局","县级","综合业务","业务","大气科学类、电子与信息类、物理学类","本科及以上",1]
[null,"那坡县气象局","县级","综合业务","业务","大气科学类、电子与信息类、物理学类","本科及以上",1]
[null,"田林县气象局","县级","综合业务","业务","大气科学类、电子与信息类、物理学类","本科及以上",1]
[null,"隆林县气象局","县级","综合业务","业务","大气科学类","本科及以上",1]
[null,"隆林县气象局","县级","综合业务","业务","大气科学类、电子与信息类、物理学类","本科及以上",1]
[null,"凌云县气象局","县级","综合业务","业务","大气科学类、电子与信息类、物理学类","本科及以上",1]
[null,"西林县气象局","县级","综合业务","业务","大气科学类、电子与信息类、物理学类","本科及以上",1]
[null,"钦州市气象局","市级","天气预报","业务","大气科学","硕士及以上",1]
[null,"河池市气象局","市级","气象监测预警服务岗","业务","大气科学类","本科及以上",1]
[null,"罗城县气象局","县级","气象监测预警服务岗","业务","大气科学类","本科及以上",1]
[null,"天峨县气象局","县级","气象监测预警服务岗","业务","电子与信息类","本科及以上",1]
[null,"都安县气象局","县级","气象监测预警服务岗","业务","大气科学类","本科及以上",1]
[null,"都安县气象局","县级","气象监测预警服务岗","业务","电子与信息类","本科及以上",1]
[null,"北海市气象局","市级","天气预报","业务","大气科学","硕士及以上",1]
[null,"天气雷达站","县级","雷达值机","业务","电子与信息","本科及以上",1]
[null,"天气雷达站","县级","气象服务","业务","大气科学","本科及以上",1]
[null,"涠洲岛气象站","县级","装备维护","业务","电子与信息","本科及以上",1]
[null,"合浦县气象局","县级","农气","业务","农业气象","本科及以上",1]
[null,"合浦县气象局","县级","预报服务","业务","大气科学","本科及以上",1]
[null,"合浦县气象局","县级","装备保障","业务","电子与信息","本科及以上",1]
[null,"防城港市气象局","市级","服务","业务","应用数学","本科及以上",1]
[null,"防城区气象局","县级","业务","业务","大气科学类","本科及以上",1]
[null,"贵港市气象局","市级","天气预报","业务","大气科学","本科及以上",1]
[null,"平南县气象局","县级","综合业务岗","业务","大气科学类","本科及以上",1]
[null,"崇左市气象局","市级","公共气象服务","服务","大气科学类","本科及以上",2]
[null,"凭祥市气象局","县级","综合业务","业务","大气科学类","本科及以上",1]
[null,"扶绥县气象局","县级","综合业务","业务","大气科学类","本科及以上",1]
[null,"天等县气象局","县级","气象监测预警服务岗","业务","大气科学类","本科及以上",1]
[null,"宁明县气象局","县级","气象监测预警服务岗","业务","电子与信息类","本科及以上",1]
[null,"龙州县气象局","县级","气象监测预警服务岗","业务","电子与信息类","本科及以上",1]
[null,"来宾市气象局","市级","会计","服务","会计学、会计","本科及以上",1]
[null,"来宾市气象局","市级","科技服务中心综合业务","业务","大气科学类","本科及以上",1]
[null,"象州县气象局","县级","综合业务","业务","大气科学及气象相关专业","本科及以上",1]
[null,"贺州市气象局","市级","预测预报","业务","大气科学类","本科及以上",1]
[null,"贺州市气象局","市级","财务管理","管理","财经类","本科及以上",1]
[null,"钟山县气象局","县级","气象台","业务","大气科学类","本科及以上",1]
[null,"天峨县气象局","县级","综合业务","业务","大气科学类","本科及以上",1]
[null,"东兰县气象局","县级","综合业务","业务","大气科学类","本科及以上",1]
[null,"金秀县气象局","县级","综合业务","业务","大气科学类","本科及以上",1]
[null,"合计",{"$nulls":5},{"$f":"SUM(H871:H947)","v":77}]
["海南省气象局","海南省气象台","省级","中短期预报","业务","气象学","硕士研究生及以上",1]
[null,"海南省气象信息中心","省级","信息系统维护","业务","计算机、软件工程、通信工程","硕士研究生及以上",2]
[null,"海南省气象信息中心","省级","资料分析应用","业务","气象、气候、大气科学","硕士研究生及以上",1]
[null,"海南省气象探测中心","省级","雷达维护","业务","信号与信息处理","硕士研究生及以上",1]
[null,"海南省气象服务中心","省级","网站与国突维护","业务","软件工程、计算机软件","硕士研究生及以上",1]
[null,"海南省气象服务中心","省级","气象影视","服务","大气科学类","硕士研究生及以上",1]
[null,"海南省气象科学研究所","省级","农业气象","业务","农业气象","硕士研究生及以上",1]
[null,"海南省气象局财务核算中心","省级","会计","业务","会计学","硕士研究生及以上",2]
[null,"海南省气象局机关服务中心","省级","水电管理","管理","电力系统及其自动化","硕士研究生及以上",1]
[null,"三亚市气象台","市级","天气预报","业务","大气科学类","硕士研究生及以上",1]
[null,"三亚市气象服务中心","市级","气候预测","业务","大气科学类","硕士研究生及以上",1]
[null,"三亚市综合气象观测站","市级","综合观测","业务","大气科学类","硕士研究生及以上",1]
[null,"三亚市综合气象观测站","市级","综合保障","业务","电子与信息类","硕士研究生及以上",1]
[null,"三亚市雷达卫星站","市级","雷达机务","业务","电子与信息类","硕士研究生及以上",1]
[null,"县级气象台","县级","综合业务","业务","大气科学类","硕士研究生及以上",2]
[null,"县级气象台","县级","综合业务","业务","大气科学类","本科及以上",5]
[null,"万宁市气象台","县级","雷达机务","业务","电子与信息类","本科及以上",1]
[null,"合计",{"$nulls":5},{"$f":"SUM(H949:H965)","v":24}]
["重庆市气象局","气象台","省级","天气预报","业务","大气科学类","硕士研究生及以上",2]
[null,"气候中心","省级","气候预测","业务","大气科学","硕士研究生及以上",1]
[null,"信息中心","省级","运行控制","业务","计算机","硕士研究生及以上",2]
[null,"气象服务中心","省级","天气预报","业务","大气科学","硕士研究生及以上",1]
[null,"气象服务中心","省级","程序开发","业务","计算机","硕士研究生及以上",1]
[null,"结算中心","省级","会计核算","业务\\管理","会计学、财务管理","硕士研究生及以上",1]
[null,"永川区气象局","县级","天气预报","业务","大气科学","本科及以上",1]
[null,"石柱县气象局","县级","天气预报","业务","大气科学","本科及以上",1]
[null,"合计",{"$nulls":5},{"$f":"SUM(H967:H974)","v":10}]
["四川省气象局","四川省气象台","省级","预报","业务","大气科学、气象学","硕士研究生及以上",1]
[null,"四川省气象台","省级","技术保障","业务","电子与信息类","硕士研究生及以上",1]
[null,"中国气象局成都高原气象研究所","省级","数值预报","科研","大气科学、气象学","博士研究生",1]
[null,"中国气象局成都高原气象研究所","省级","天气研究或观测","科研","大气科学、气象学","硕士研究生及以上",1]
[null,"四川省气象探测数据中心","省级","气象档案管理","业务","应用气象学、3S集成与气象应用","硕士研究生及以上",1]
[null,"四川省气象探测数据中心","省级","大气成分业务","业务","环境工程","硕士研究生及以上",1]
[null,"四川省气象探测数据中心","省级","通信信息系统管理","业务","计算机软件","硕士研究生及以上",1]
[null,"四川省气象服务中心","省级","气象服务","业务","大气科学、气象学","硕士研究生及以上",1]
[null,"干部培训学院四川分院","省级","气象教育培训","业务","计算机及应用、计算机通信","硕士研究生及以上",1]
[null,"干部培训学院四川分院","省级","气象教育培训","业务","大气科学、气象学","硕士研究生及以上",1]
[null,"四川省气象局财务核算中心","省级","会计","业务","财经类","硕士研究生及以上",1]
[null,"四川省气象灾害防御技术中心","省级","灾害防御技术","业务","大气科学、气象学","硕士研究生及以上",3]
[null,"成都市气象台","市级","数值预报解用","业务","大气科学、气象学","硕士研究生及以上",1]
[null,"成都市城市气象服务中心","市级","服务开发","业务","电子与信息类","硕士研究生及以上",1]
[null,"成都温江区气象局","县级","综合业务","业务","大气科学、气象学","硕士研究生及以上",1]
[null,"成都蒲江县气象局","县级","综合业务","业务","大气科学、气象学","本科及以上",1]
[null,"成都崇州市气象局","县级","综合业务","业务","大气科学、气象学","硕士研究生及以上",1]
[null,"德阳什邡市气象局","县级","综合业务","业务","电子与信息类","本科及以上",1]
[null,"绵阳盐亭县气象局","县级","综合业务","业务","大气科学、气象学、应用气象学","本科及以上",1]
[null,"广元苍溪县气象局","县级","综合业务","业务","大气科学类、环境类","本科及以上",1]
[null,"眉山洪雅县气象局","县级","综合业务","业务","大气科学类、电子与信息类","本科及以上",1]
[null,"乐山峨眉山市气象局","县级","综合业务","业务","大气科学","本科及以上",1]
[null,"雅安市气象局财务核算中心","市级","会计","业务","财务管理、会计学","本科及以上",1]
[null,"雅安宝兴县气象局","县级","综合业务","业务","大气科学类、电子信息工程、计算机科学与技术","本科及以上",1]
[null,"南充市气象台","市级","天气预报、气象服务 ","业务","大气科学、农业气象学、应用气象学","硕士研究生及以上",1]
[null,"南充西充县气象局","县级","综合业务","业务","大气科学类、电子与信息类","本科及以上",1]
[null,"南充阆中市气象局","县级","综合业务","业务","大气科学类、电子与信息类、环境类","本科及以上",1]
[null,"广安市广安区气象局","县级","综合业务","业务","大气科学","本科及以上",1]
[null,"巴中市气象台","市级","天气预报","业务","大气科学","硕士研究生及以上",1]
[null,"巴中南江县气象局","县级","综合业务","业务","大气科学类、电子与信息类","本科及以上",1]
[null,"达州市气象台","市级","综合业务","业务","大气科学","本科及以上",1]
[null,"达州万源市气象局","县级","综合业务","业务","大气科学类、电子与信息类、环境类","本科及以上",1]
[null,"达州宣汉县气象局","县级","综合业务","业务","大气科学类","本科及以上",1]
[null,"资阳安岳县气象局","县级","综合业务","业务","大气科学类、电子与信息类","本科及以上",1]
[null,"自贡市气象信息中心","市级","网络维护","业务","计算机科学与技术、信息与通信工程","硕士研究生及以上",1]
[null,"泸州市气象台","市级","天气预报","业务","大气科学、气象学","硕士研究生及以上",1]
[null,"泸州古蔺县气象局","县级","综合业务","业务","大气科学类、电子与信息类、环境类","本科及以上",1]
[null,"宜宾市宜宾县气象局","县级","综合业务","业务","大气科学类","本科及以上",1]
[null,"宜宾长宁县气象局","县级","综合业务","业务","大气科学类、电子与信息类","本科及以上",1]
[null,"攀枝花市气象台","市级","天气预报","业务","大气科学","本科及以上",1]
[null,"攀枝花市气象局财务核算中心","市级","财务核算","服务","会计学","本科及以上",1]
[null,"攀枝花仁和区气象局","县级","综合业务","业务","大气科学类、电子与信息类","本科及以上",1]
[null,"甘孜州康定气象站","县级","综合业务","业务","大气科学、计算机、数学","本科及以上",1]
[null,"甘孜州雅江县气象局","县级","综合业务","业务","大气科学、计算机、数学","本科及以上",2]
[null,"甘孜州甘孜县气象局","县级","综合业务","业务","大气科学、计算机、数学","本科及以上",4]
[null,"甘孜州德格县气象局","县级","综合业务","业务","大气科学、计算机、数学","本科及以上",1]
[null,"甘孜州石渠县气象局","县级","综合业务","业务","大气科学、计算机、数学","本科及以上",1]
[null,"甘孜州色达县气象局","县级","综合业务","业务","大气科学、计算机、数学","本科及以上",1]
[null,"甘孜州乡城县气象局","县级","综合业务","业务","大气科学、计算机、数学","本科及以上",1]
[null,"甘孜州巴塘县气象局","县级","综合业务","业务","大气科学、计算机、数学","本科及以上",3]
[null,"甘孜州稻城县气象局","县级","综合业务","业务","大气科学、计算机、数学","本科及以上",1]
[null,"甘孜州得荣县气象局","县级","综合业务","业务","大气科学、计算机、数学","本科及以上",1]
[null,"阿坝州红原县气象局","县级","综合业务","业务","大气科学、应用物理、通信工程","本科及以上",3]
[null,"阿坝州若尔盖县气象局","县级","综合业务","业务","大气科学、通信工程、电子信息工程","本科及以上",2]
[null,"阿坝州阿坝县气象局","县级","综合业务","业务","大气科学","本科及以上",1]
[null,"凉山州盐源县气象局","县级","综合业务","业务","大气科学","本科及以上",1]
[null,"合计",{"$nulls":5},{"$f":"SUM(H976:H1031)","v":67}]
["贵州省气象局","贵州省气象台","省级","预报","业务","大气科学类","硕士研究生及以上",5]
[null,"贵州省气候中心","省级","气候评价与服务科","业务","大气科学类","硕士研究生及以上",1]
[null,"贵州省气候中心","省级","气候监测与变化科","业务","大气科学类","硕士研究生及以上",1]
[null,"贵州省气候中心","省级","气候诊断与预测科","业务","大气科学类","硕士研究生及以上",1]
[null,"贵州省气候中心","省级","遥感应用科","业务","地球科学相关类","硕士研究生及以上",1]
[null,"贵州省山地环境气候研究所","省级","农业气象","业务、科研","农业气象","硕士研究生及以上",3]
[null,"贵州省气象信息中心","省级","数据产品开发岗","业务","大气科学类","硕士研究生及以上",2]
[null,"贵州省气象信息中心","省级","数据加工岗","业务","计算机或软件工程","硕士研究生及以上",1]
[null,"省大气探测技术与保障中心","省级","技术开发","业务","大气科学（理科）","硕士研究生及以上",4]
[null,"省大气探测技术与保障中心","省级","技术保障","业务","通讯工程（理科）","硕士研究生及以上",1]
[null,"贵州省气象服务中心","省级","产品制作岗","业务","大气科学","硕士研究生及以上",1]
[null,"贵州省气象服务中心","省级","系统运维","业务","计算机、通讯相关专业","硕士研究生及以上",2]
[null,"贵州省气象局机关服务中心","省级","供电系统及大型设备维护保障","业务","机电专业","本科及以上",1]
[null,"灾害防御中心","省级",null,"业务","大气科学类","硕士研究生及以上",1]
[null,"贵州省人工影响天气办公室","省级","业务科工作人员","业务","大气科学类","硕士研究生及以上",2]
[null,"贵州省气象局财务核算中心",null,"会计岗、综合岗","业务","财经类","本科及以上",1]
[null,"贵州省气象局财务核算中心",null,"会计岗、综合岗","业务","财经类","硕士研究生及以上",2]
[null,"开阳县气象局","县级","综合业务","业务","大气科学类","本科及以上",1]
[null,"息烽县气象局","县级","综合业务","业务","大气科学类","本科及以上",1]
[null,"清镇市气象局","县级","综合业务","业务","大气科学类","本科及以上",1]
[null,"清镇市气象局","县级","综合业务","业务","农业气象","本科及以上",1]
[null,"遵义市气象局","市级",null,"业务","大气科学","硕士研究生及以上",1]
[null,"桐梓县气象局","县级",null,"业务","大气科学","本科及以上",1]
[null,"仁怀市气象局","县级",null,"业务","大气科学","本科及以上",1]
[null,"道真县气象局","县级",null,"业务","大气科学","本科及以上",1]
[null,"安顺市气象局","市级","会计","业务","会计","本科及以上",1]
[null,"安顺市气象局","市级","业务","业务","大气科学类","本科及以上",1]
[null,"紫云县气象局","县级","业务","业务","大气科学类","本科及以上",2]
[null,"江口县气象局","县级","综合气象业务","业务","大气科学类","本科及以上",1]
[null,"印江县气象局","县局","综合气象业务","业务","大气科学类、地理信息科学","本科及以上",1]
[null,"松桃苗族自治县气象局","县级","综合气象业务","业务","大气科学","本科及以上",1]
[null,"黔西县气象局","地市级以下","预报服务","业务","大气科学","本科及以上",1]
[null,"赫章县气象局","地市级以下","预报服务","业务","大气科学","本科及以上",1]
[null,"七星关区气象局","地市级以下","预报服务","业务","大气科学","本科及以上",2]
[null,"金沙县气象局","地市级以下","预报服务","业务","大气科学","本科及以上",3]
[null,"大方县气象局","地市级以下","预报服务","业务","信息类、电子类","本科及以上",1]
[null,"黔南州气象局","市级","财务","业务","财经类","本科及以上",1]
[null,"长顺县气象局","县级","气象台","业务","大气科学类","本科及以上",2]
[null,"独山县气象局","县级","气象台","业务","大气科学类","本科及以上",1]
[null,"荔波县气象局","县级","气象台","业务","大气科学类","本科及以上",1]
[null,"罗甸县气象局","县级","气象台","业务","大气科学类","本科及以上",1]
[null,"黔东南州局","市（地）级","财务","业务","财经类","本科及以上",1]
[null,"三穗局","县（区）级及以下","气象业务综合岗","业务","大气科学","本科及以上",2]
[null,"从江局","县（区）级及以下","气象业务综合岗","业务","大气科学","本科及以上",1]
[null,"岑巩局","县（区）级及以下","气象业务综合岗","业务","大气科学","本科及以上",1]
[null,"镇远局","县（区）级及以下","气象业务综合岗","业务","大气科学","本科及以上",1]
[null,"施秉局","县（区）级及以下","气象业务综合岗","业务","大气科学","本科及以上",1]
[null,"黄平局","县（区）级及以下","气象业务综合岗","业务","大气科学","本科及以上",1]
[null,"黔西南州气象局","市级","气象科技服务中心","服务","大气科学类，大气探测","本科及以上",1]
[null,"黔西南州气象局","市级","气象台","业务","大气科学","本科及以上",1]
[null,"望谟县气象局","县级","气象基础业务","业务","大气科学类，大气探测","本科及以上",1]
[null,"贞丰县气象局","县级","气象基础业务","业务","大气科学类，大气探测","本科及以上",1]
[null,"册亨县气象局","县级","气象基础业务","业务","大气科学类，大气探测","本科及以上",1]
[null,"合计",{"$nulls":5},{"$f":"SUM(H1033:H1085)","v":72}]
["云南省气象局","云南省气象台","省级","综合气象业务","业务","气象学/大气物理","硕士研究生及以上",1]
[null,"云南省气象服务中心","省级","技术研发","科研","地理信息系统与地图学","硕士研究生及以上",1]
[null,"云南省气象信息中心","省级","气象资料分析","业务","大气科学类","硕士研究生及以上",1]
[null,"西双版纳州勐腊县气象局","县级","综合气象业务","业务","大气科学","本科及以上",2]
[null,"西双版纳州勐海县气象局","县级","综合气象业务","业务","大气科学","本科及以上",1]
[null,"德宏州芒市气象局","县级","综合气象业务","业务","大气科学类","本科及以上",1]
[null,"德宏州瑞丽市气象局","县级","综合气象业务","业务","大气科学类","本科及以上",1]
[null,"德宏州盈江县气象局","县级","综合气象业务","业务","大气科学类","本科及以上",1]
[null,"迪庆州香格里拉区域大气本底站","县级","综合气象业务","业务","大气科学类/电子与信息类/地理信息系统/资源与环境","本科及以上",1]
[null,"普洱市气象台","市级","综合气象业务","业务","大气科学类","硕士研究生及以上",1]
[null,"普洱市气象科技服务中心","市级","农业气象","业务","农业气象","硕士研究生及以上",1]
[null,"普洱市西盟县气象局","县级","综合气象业务","业务","大气科学类","本科及以上",1]
[null,"普洱市孟连县气象局","县级","综合气象业务","业务","大气科学类","本科及以上",1]
[null,"普洱市江城县气象局","县级","综合气象业务","业务","大气科学类","本科及以上",1]
[null,"普洱市墨江县气象局","县级","综合气象业务","业务","大气科学类","本科及以上",1]
[null,"普洱市景谷县气象局","县级","综合气象业务","业务","大气科学类","本科及以上",1]
[null,"普洱市澜沧县气象局","县级","综合气象业务","业务","大气科学类","本科及以上",1]
[null,"普洱市景东县气象局","县级","综合气象业务","业务","大气科学类","本科及以上",1]
[null,"普洱市镇沅县气象局","县级","综合气象业务","业务","大气科学类","本科及以上",1]
[null,"保山市气象台","市级","综合气象业务","业务","大气科学","硕士研究生及以上",1]
[null,"保山市施甸县气象局","县级","综合气象业务","业务","大气科学","本科及以上",1]
[null,"保山市龙陵县气象局","县级","综合气象业务","业务","大气科学","本科及以上",1]
[null,"保山市昌宁县气象局","县级","综合气象业务","业务","大气科学","本科及以上",1]
[null,"大理州云龙县气象局","县级","综合气象业务","业务","大气科学","本科及以上",1]
[null,"红河州绿春县气象局","县级","综合气象业务","业务","大气科学","本科及以上",1]
[null,"红河州金平县气象局","县级","综合气象业务","业务","大气科学","本科及以上",1]
[null,"红河州屏边县气象局","县级","综合气象业务","业务","大气科学","本科及以上",1]
[null,"红河州河口县气象局","县级","综合气象业务","业务","大气科学","本科及以上",1]
[null,"红河州元阳县气象局","县级","综合气象业务","业务","大气科学","本科及以上",1]
[null,"昆明市官渡区气象局（昆明农业气象试验站）","县级","农业气象观测及研究","业务/科研","气象学/生态学","硕士研究生及以上",1]
[null,"丽江市华坪县气象局","县级","综合气象业务","业务","大气科学","本科及以上",1]
[null,"临沧市耿马县气象局","县级","综合气象业务","业务","大气科学/农业气象","本科及以上",1]
[null,"怒江州福贡县气象局","县级","综合气象业务","业务","大气科学类/雷电防护科学与技术","本科及以上",2]
[null,"文山州西畴县气象局","县级","综合气象业务","业务","通信工程","本科及以上",1]
[null,"文山州文山市气象局","县级","综合气象业务","业务","大气科学类","本科及以上",1]
[null,"文山州麻栗坡县气象局","县级","综合气象业务","业务","大气科学类","本科及以上",1]
[null,"玉溪市气象台","市级","综合气象业务","业务","大气科学","硕士研究生及以上",1]
[null,"玉溪市气象局财务核算中心","市级","财务","管理","会计学","本科及以上",1]
[null,"玉溪市通海县气象局","县级","综合气象业务","业务","大气科学类","本科及以上",1]
[null,"玉溪市新平县气象局","县级","综合气象业务","业务","大气科学类","本科及以上",1]
[null,"玉溪元江县气象局","县级","综合气象业务","业务","大气科学类","本科及以上",1]
[null,"玉溪市易门县气象局","县级","综合气象业务","业务","大气科学类","本科及以上",1]
[null,"昭通市气象台","市级","综合气象业务","业务","大气科学类","硕士研究生及以上",1]
[null,"昭通天气雷达站","市级","综合气象业务","业务","计算机及应用/通信工程","本科及以上",1]
[null,"昭通市盐津县气象局","县级","综合气象业务","业务","大气科学类/计算机及应用/通信工程/数学","本科及以上",1]
[null,"昭通市镇雄县气象局","县级","综合气象业务","业务","大气科学类/计算机及应用/通信工程/数学","本科及以上",1]
[null,"曲靖市宣威市气象局","县级","综合气象业务","业务","电子信息工程（大气电子方向）","本科及以上",1]
[null,"合计",{"$nulls":5},{"$f":"SUM(H1087:H1133)","v":49}]
["西藏自治区气象局","西藏自治区气象台","省级","天气预报","业务","大气科学","本科及以上",2]
[null,"气象服务中心","省级","主持人","业务","播音主持","本科及以上",1]
[null,"西藏高原大气环境科学研究所","省级","遥感应用及监测","业务","大气科学类","本科及以上",1]
[null,"西藏高原大气环境科学研究所","省级","遥感应用及监测","业务","遥感科学与技术、摄影测量与遥感、地理信息系统、生态学、地图学与地理信息系统，遥感和GIS相关专业","本科及以上",2]
[null,"日喀则市气象局财务核算中心","市级","财务会计","服务","会计学","本科",1]
[null,"那曲地区气象局财务核算中心","市级","财务会计","服务","会计学","本科",1]
[null,"林芝市气象局财务核算中心","市级","财务会计","服务","会计学","本科",1]
[null,"阿里地区普兰县气象局","县级","气象综合业务","业务","大气科学","本科",2]
[null,"阿里地区改则县气象局","县级","气象综合业务","业务","大气科学","本科",1]
[null,"那曲地区安多县气象局","县级","气象综合业务","业务","大气科学","本科",1]
[null,"那曲地区索县气象局","县级","气象综合业务","业务","大气科学","本科",1]
[null,"合计",{"$nulls":5},{"$f":"SUM(H1135:H1145)","v":14}]
["陕西省气象局","榆林市所属南部县气象局","县级","综合业务","业务","大气科学类","本科及以上",2]
[null,"志丹县气象局","县级","综合业务","业务","大气科学类","本科及以上",1]
[null,"延川县气象局","县级","综合业务","业务","大气科学类","本科及以上",1]
[null,"黄陵县气象局","县级","综合业务","业务","大气科学类","本科及以上",1]
[null,"凤翔县气象局","县级","综合业务","业务","大气科学类","本科及以上",1]
[null,"陇县气象局","县级","综合业务","业务","大气科学类","本科及以上",1]
[null,"太白县气象局","县级","综合业务","业务","大气科学类","本科及以上",1]
[null,"长武县气象局","县级","综合业务","业务","大气科学类","本科及以上",1]
[null,"淳化县气象局","县级","综合业务","业务","大气科学类","本科及以上",1]
[null,"华山气象站","县级","综合业务","业务","大气科学类","本科及以上",2]
[null,"潼关县气象局","县级","综合业务","业务","大气科学类","本科及以上",1]
[null,"留坝县气象局","县级","综合业务","业务","大气科学类","本科及以上",1]
[null,"略阳县气象局","县级","综合业务","业务","大气科学类","本科及以上",1]
[null,"镇巴县气象局","县级","综合业务","业务","大气科学类","本科及以上",1]
[null,"山阳县气象局","县级","综合业务","业务","大气科学类","本科及以上",1]
[null,"周至县气象局","县级","综合业务","业务","大气科学类","硕士研究生及以上",1]
[null,"镇坪县气象局","县级","综合业务","业务"," 大气科学类/电子信息类/地球科学类","本科及以上",2]
[null,"旬阳县气象局","县级","综合业务","业务"," 大气科学类/电子信息类/地球科学类","本科及以上",1]
[null,"紫阳县气象局","县级","综合业务","业务"," 大气科学类/电子信息类/地球科学类","本科及以上",1]
[null,"白河县气象局","县级","综合业务","业务"," 大气科学类/电子信息类/地球科学类","本科及以上",1]
[null,"延长县气象局","县级","综合业务","业务","大气科学类/电子与信息类/地球科学类","本科及以上",1]
[null,"榆林市气象局","市级","综合业务","业务","大气科学类","硕士研究生及以上",1]
[null,"延安市气象局","市级","综合业务","业务","大气科学类","硕士研究生及以上",1]
[null,"渭南市气象局","市级","综合业务","业务","大气科学类","硕士研究生及以上",1]
[null,"宝鸡市气象局","市级","预报","业务","大气科学类","硕士研究生及以上",1]
[null,"安康市气象局","市级","预报","业务","大气科学类","硕士研究生及以上",2]
[null,"汉中市气象局","市级","预报","业务","大气科学类","硕士研究生及以上",1]
[null,"咸阳市气象局","市级","预报","业务","大气科学类","硕士研究生及以上",1]
[null,"渭南市气象局","市级","财务核算","服务","财会类","本科及以上",1]
[null,"咸阳市气象局","市级","财务核算","服务","财会类","本科及以上",1]
[null,"西安市气象局","市级","预报","业务","大气科学类","博士研究生",1]
[null,"省气象台","省级","预报","业务","大气科学类","博士研究生",2]
[null,"省气象信息中心","省级","网络开发","业务","电子与信息类","博士研究生",1]
[null,"省气象台","省级","预报","业务","大气科学类","硕士研究生及以上",1]
[null,"省气象信息中心","省级","网络维护","业务","电子与信息类","硕士研究生及以上",1]
[null,"省局财务核算中心","省级","财务核算","服务","财会类","硕士研究生及以上",1]
[null,"合计",{"$nulls":5},{"$f":"SUM(H1147:H1182)","v":41}]
["甘肃省气象局","兰州中心气象台","省级","天气预报","业务","气象学","硕士研究生及以上",7]
[null,"西北区域气候中心","省级","气候与气候预测","业务","气候学","硕士研究生及以上",2]
[null,"中国气象局兰州干旱气象研究所","省级","陆气相互作用及其参数化和区域数值模式","科研","气象学","博士研究生",2]
[null,"中国气象局兰州干旱气象研究所","省级","干旱致灾机理","科研","气象学","硕士研究生及以上",1]
[null,"甘肃省人工影响天气办公室","省级","飞机增雨","业务","大气物理与大气环境","硕士研究生及以上",1]
[null,"甘肃省气象信息与技术装备保障中心","省级","业务系统软件维护与本地化应用开发","业务","计算机软件","硕士研究生及以上",1]
[null,"甘肃省气象信息与技术装备保障中心","省级","高性能计算机管理与维护","业务","计算机及应用","硕士研究生及以上",2]
[null,"甘肃省气象信息与技术装备保障中心","省级","数据挖掘与产品开发","业务","气象学","硕士研究生及以上",1]
[null,"甘肃省气象信息与技术装备保障中心","省级","计量检定管理系统开发与应用","业务","电子信息工程","硕士研究生及以上",1]
[null,"甘肃省气象服务中心","省级","软件开发及系统维护","业务","计算机科学与技术（软件开发方向）","硕士研究生及以上",1]
[null,"甘肃省气象服务中心","省级","影视节目制作","服务","影视节目制作","硕士研究生及以上",1]
[null,"甘肃分院","省级","数值预报专职教师岗","业务","气象学","硕士研究生及以上",1]
[null,"甘肃分院","省级","远程培训业务岗","业务","计算机应用技术或通信与信息系统","硕士研究生及以上",1]
[null,"兰州市气象台","市级","天气预报","业务","大气科学及相关专业","硕士研究生及以上",2]
[null,"皋兰县气象局","县级","综合气象业务岗位","业务","大气科学及相关专业","本科及以上",1]
[null,"马鬃山气象站","县级","综合气象业务岗位","业务","大气科学","本科及以上",1]
[null,"鼎新气象站","县级","综合气象业务岗位","业务","大气科学","本科及以上",1]
[null,"民勤县气象局","县级","综合气象业务岗位","业务","大气科学","本科及以上",1]
[null,"古浪县气象局","县级","综合气象业务岗位","业务","大气科学","本科及以上",2]
[null,"张掖天气雷达站","市级","天气雷达探测及保障","业务","大气探测（雷达方向）","本科及以上",1]
[null,"张掖气象科技服务中心","市级","影视节目制作","服务","电视节目制作或播音主持","本科及以上",1]
[null,"张掖气象科技服务中心","市级","气象服务","服务","大气科学及相关专业","本科及以上",1]
[null,"张掖观测站","市级","综合气象业务岗位","业务","大气科学及相关专业","本科及以上",1]
[null,"张掖市气象局会计核算中心","市级","财务运行","业务","会计学","本科及以上",1]
[null,"高台县气象局","县级","综合气象业务岗位","业务","大气科学及相关专业","本科及以上",1]
[null,"山丹县气象局","县级","综合气象业务岗位","业务","大气科学及相关专业","本科及以上",1]
[null,"肃南县气象局","县级","综合气象业务岗位","业务","大气科学及相关专业","本科及以上",1]
[null,"天水市气象台","市级","天气预报","业务","气象学","硕士研究生及以上",1]
[null,"天水国家气象观测站","市级","综合气象业务岗位","业务","气象学","硕士研究生及以上",1]
[null,"天水天气雷达站","市级","天气雷达探测及保障","业务","大气探测","硕士研究生及以上",2]
[null,"麦积区气象局","县级","综合气象业务岗位","业务","气象学","硕士研究生及以上",1]
[null,"甘谷县气象局","县级","综合气象业务岗位","业务","大气科学","本科及以上",1]
[null,"张家川回族自治县气象局","县级","综合气象业务岗位","业务","大气科学","本科及以上",1]
[null,"白银市气象台","市级","天气预报","业务","大气科学","本科及以上",1]
[null,"白银市气象台","市级","计算机网络维护","业务","计算机科学与技术","本科及以上",1]
[null,"平凉市气象台","市级","天气预报","业务","大气科学","本科及以上",1]
[null,"崇信县气象局","县级","综合气象业务岗位","业务","大气科学","本科及以上",1]
[null,"庆阳市气象台","市级","天气预报","业务","大气科学","本科及以上",1]
[null,"华池县气象局","县级","综合气象业务岗位","业务","大气科学","本科及以上",1]
[null,"定西市气象台","市级","天气预报","业务","气象学","硕士研究生及以上",1]
[null,"定西市气象科技服务中心","市级","财务运行","业务","会计学","本科及以上",1]
[null,"通渭县气象局","县级","天气预报","业务","大气科学","本科及以上",1]
[null,"渭源县气象局","县级","天气预报","业务","大气科学","本科及以上",1]
[null,"华家岭气象站","县级","综合气象业务岗位","业务","大气科学","本科及以上",1]
[null,"陇南市气象台","市级","天气雷达探测及保障","业务","电子信息工程（大气电子工程方向）","本科及以上",1]
[null,"宕昌县气象局","县级","综合气象业务岗位","业务","大气科学及相关专业","本科及以上",2]
[null,"西和县气象局","县级","综合气象业务岗位","业务","大气科学及相关专业","本科及以上",1]
[null,"康县气象局","县级","综合气象业务岗位","业务","大气科学及相关专业","本科及以上",1]
[null,"文县气象局","县级","综合气象业务岗位","业务","大气科学及相关专业","本科及以上",1]
[null,"东乡县气象局","县级","综合气象业务岗位","业务","大气科学","本科及以上",1]
[null,"甘南州气象台","市级","天气预报","业务","大气科学","本科及以上",1]
[null,"临潭县气象局","县级","综合气象业务岗位","业务","大气科学","本科及以上",1]
[null,"玛曲县气象局","县级","综合气象业务岗位","业务","大气科学","本科及以上",1]
[null,"夏河县气象局","县级","综合气象业务岗位","业务","大气科学","本科及以上",1]
[null,"合计",{"$nulls":5},{"$f":"SUM(H1184:H1237)","v":67}]
["青海省气象局","青海省气象台","省级","短时临近天气预报","业务","气象学","硕士研究生及以上",2]
[null,"青海省气象台","省级","短期天气预报","业务","大气科学/气象学","本科及以上",2]
[null,"青海省气候中心","省级","气候预测","业务","大气科学类（气候资源方向）","硕士研究生及以上",1]
[null,"青海省气候中心","省级","气候变化","业务","大气科学类（气候资源方向）","硕士研究生及以上",1]
[null,"青海省气候中心","省级","气候评估","业务","大气科学","本科及以上",1]
[null,"青海省气候中心","省级","气候监测","业务","大气科学","本科及以上",1]
[null,"青海省气象科学研究所","省级","天气气候研究","科研","气象学（数值模式方向）","硕士研究生及以上",1]
[null,"青海省气象科学研究所","省级","遥感监测与生态评估","业务","3S集成与应用气象（遥感应用技术方向）","硕士研究生及以上",2]
[null,"青海省气象科学研究所","省级","农牧业气象服务","业务","应用气象学（农业气象方向）","硕士研究生及以上",1]
[null,"青海省气象信息中心","省级","数据审核","业务","大气科学/大气探测/应用气象","本科及以上",1]
[null,"青海省气象服务中心","省级","专业台预报服务","业务","气象学","硕士研究生及以上",1]
[null,"青海省气象服务中心","省级","公众服务室系统研发与保障","业务","软件工程","本科及以上",1]
[null,"青海省气象服务中心","省级","影视宣传中心影视节目制作","业务","影视节目制作（藏语）","本科及以上",1]
[null,"青海省气象服务中心","省级","记者站记者","业务","新闻学","本科及以上",1]
[null,"青海省大气探测技术保障中心","省级","雷达技术保障","业务","电子信息类(微波)","本科及以上",1]
[null,"青海省大气探测技术保障中心","省级","计量检定","业务","仪器仪表类","本科及以上",1]
[null,"中国大气本底基准观象台","省级","业务监测","业务","大气科学/气象学","本科及以上",1]
[null,"青海省气象财务核算中心","省级","会计","业务","会计","本科及以上",1]
[null,"青海省气象干部培训学院","省级","系统维护与开发","业务","计算机应用","本科及以上",1]
[null,"西宁市气象台","市级","预报服务","业务","大气科学","本科及以上",3]
[null,"西宁市湟中县气象局","县级","综合业务","业务","大气科学","本科及以上",1]
[null,"西宁市湟源县气象局","县级","综合业务","业务","大气科学","本科及以上",1]
[null,"海东市化隆县气象局","县级","综合业务","业务","大气科学类","本科及以上",1]
[null,"海南州兴海县气象局","县级","综合业务","业务","大气科学","本科及以上",1]
[null,"海南州同德县气象局","县级","综合业务","业务","大气科学类","本科及以上",1]
[null,"黄南州气象台","市级","预报服务","业务","大气科学","本科及以上",1]
[null,"果洛州玛沁县气象局","县级","预报服务","业务","大气科学","本科及以上",1]
[null,"果洛州班玛县气象局","县级","综合业务","业务","大气科学类","本科及以上",1]
[null,"玉树州气象台","市级","预报服务","业务","大气科学","本科及以上",1]
[null,"玉树州囊谦县气象局","县级","综合业务","业务","应用气象","本科及以上",1]
[null,"玉树州曲麻莱县气象局","县级","综合业务","业务","草业","本科及以上",1]
[null,"玉树州杂多县气象局","县级","综合业务","业务","大气科学类","本科及以上",1]
[null,"玉树州治多县气象局","县级","综合业务","业务","大气科学","本科及以上",1]
[null,"玉树州称多县气象局","县级","综合业务","业务","电子信息类","本科及以上",1]
[null,"海西州大柴旦行委气象局","县级","综合业务","业务","大气科学类","本科及以上",1]
[null,"海西州乌兰县气象局","县级","综合业务","业务","大气科学","本科及以上",1]
[null,"格尔木市都兰县气象局","县级","气象服务","服务","大气科学","本科及以上",1]
[null,"合计",{"$nulls":5},{"$f":"SUM(H1239:H1275)","v":42}]
["宁夏回族自治区气象局","宁夏气象台","省级","监测预警","业务","大气科学、气象学","硕士研究生及以上",1]
[null,"宁夏气象台","省级","数值预报","业务","计算数学、应用数学","硕士研究生及以上",1]
[null,"宁夏气候中心","省级","气候与气候变化","业务","气候学、大气科学、气象学","硕士研究生及以上",2]
[null,"宁夏气象服务中心","省级","气象服务","业务","大气科学、气象学、应用气象","硕士研究生及以上",2]
[null,"宁夏气象信息中心","省级","气象信息","业务","大气科学、气象学","硕士研究生及以上",1]
[null,"宁夏气象信息中心","省级","信息技术","业务","气象信息技术、计算机、通信工程","硕士研究生及以上",1]
[null,"宁夏大气探测技术保障中心","省级","运行监控保障","业务","大气探测、大气科学、气象学、电子信息工程、通信工程","硕士研究生及以上",1]
[null,"宁夏气象科学研究所","省级","农业气象业务","业务","应用气象、遥感","硕士研究生及以上",2]
[null,"宁夏气象局财务核算中心","省级","会计","业务","会计学","本科及以上",1]
[null,"银川市气象局","市级","气象服务","服务","大气科学、气象学、应用气象","硕士研究生及以上",2]
[null,"石嘴山市气象局","市级","气象服务","业务","大气科学、应用气象","本科及以上",1]
[null,"吴忠市气象局","市级","气象服务","业务","大气科学、应用气象","本科及以上",1]
[null,"吴忠市气象局","市级","气象雷达维护","业务","电子信息工程、通信工程","本科及以上",1]
[null,"固原市气象局","市级","气象服务","业务","大气科学、应用气象","本科及以上",1]
[null,"固原市气象局","市级","会计","业务","会计学","本科及以上",1]
[null,"中卫市气象局","市级","气象服务","业务","大气科学、应用气象","本科及以上",1]
[null,"永宁县气象局","县级","综合气象业务","业务","大气科学、应用气象","本科及以上",1]
[null,"陶乐气象站","县级","气象观测保障","业务","大气科学、应用气象","本科及以上",1]
[null,"石炭井气象站","县级","气象观测保障","业务","大气科学、应用气象","本科及以上",1]
[null,"沙湖气象站","县级","气象观测保障","业务","大气科学、应用气象","本科及以上",1]
[null,"青铜峡市气象局","县级","综合气象业务","业务","大气科学、应用气象","本科及以上",1]
[null,"麻黄山气象站","县级","气象观测保障","业务","大气科学、应用气象","本科及以上",1]
[null,"隆德县气象局","县级","综合气象业务","业务","大气科学、应用气象","本科及以上",1]
[null,"泾源县气象局","县级","综合气象业务","业务","大气科学、应用气象","本科及以上",2]
[null,"合计",{"$nulls":5},{"$f":"SUM(H1277:H1300)","v":29}]
["新疆维吾尔自治区气象局","新疆气象台","省级","预报","业务","大气科学","本科及以上",8]
[null,"新疆气象台","省级","软件开发","业务","软件工程","硕士研究生及以上",1]
[null,"新疆气候中心","省级","气候预测及气候监测分析","业务","气象学（气候）","硕士研究生及以上",2]
[null,"新疆气象信息中心","省级","运行保障及技术开发","业务","电子与信息类","硕士研究生及以上",2]
[null,"新疆气象服务中心","省级","预报","业务","大气科学","本科及以上",4]
[null,"新疆气象服务中心","省级","技术支撑","业务","计算机及应用","硕士研究生及以上",2]
[null,"新疆气象技术装备保障中心","省级","气象检定","业务","电子工程","本科及以上",1]
[null,"中国气象局乌鲁木齐沙漠气象研究所","省级","大气科学研究","科研","气象学","硕士研究生及以上",6]
[null,"中国气象局乌鲁木齐沙漠气象研究所","省级","农牧业气象","科研","农业气象","硕士研究生及以上",2]
[null,"中国气象局乌鲁木齐沙漠气象研究所","省级","大气物理","科研","大气物理与大气环境","硕士研究生及以上",2]
[null,"中国气象局乌鲁木齐沙漠气象研究所","省级","陆气相互作用","科研","大气物理与大气环境","硕士研究生及以上",2]
[null,"中国气象局乌鲁木齐沙漠气象研究所","省级","数值预报","科研","应用数学","硕士研究生及以上",1]
[null,"中国气象局乌鲁木齐沙漠气象研究所","省级","数值预报","业务","气象学","硕士研究生及以上",2]
[null,"中国气象局乌鲁木齐沙漠气象研究所","省级","办公室管理","管理","地球科学类","硕士研究生及以上",1]
[null,"新疆兴农网信息中心（新疆农业气象台）","省级","农气业务","业务","农业气象","硕士研究生及以上",1]
[null,"塔城地区气象局","市级","综合气象业务","业务","大气科学","本科及以上",1]
[null,"塔城地区气象局","市级","综合气象业务","业务","计算机、软件","本科及以上",1]
[null,"塔城地区乌苏市气象局","县级","综合气象业务","业务","气象及相关专业","本科及以上",1]
[null,"阿勒泰地区气象局","市级","预报","业务","大气科学","本科及以上",1]
[null,"阿克达拉区域大气本底站","县级","综合气象业务","业务","气象及相关专业","本科及以上",1]
[null,"阿勒泰地区吉木乃县气象局","县级","综合气象业务","业务","气象及相关专业","本科及以上",1]
[null,"阿勒泰地区布尔津县气象局","县级","综合气象业务","业务","气象及相关专业","本科及以上",1]
[null,"阿勒泰地区福海县气象局","县级","综合气象业务","业务","气象及相关专业","本科及以上",1]
[null,"博州气象局气象服务中心","市级","公共气象服务","服务","应用气象","本科及以上",1]
[null,"博州气象局气象台","市级","预报","业务","大气科学","本科及以上",1]
[null,"博州温泉县气象局","县级","综合气象业务","业务","气象及相关专业","本科及以上",1]
[null,"克拉玛依市气象局","市级","预报","业务","大气科学","本科及以上",1]
[null,"克拉玛依市气象局","市级","装备保障","业务","通信工程","本科及以上",1]
[null,"昌吉州气象局气象台","市级","预报","业务","大气科学","本科及以上",1]
[null,"乌鲁木齐市气象局气象台","市级","预报","业务","大气科学","本科及以上",1]
[null,"乌鲁木齐市气象局技术保障中心","市级","技术保障","业务","计算机及应用","硕士研究生及以上",1]
[null,"吐鲁番市气象局气象台","市级","预报","业务","大气科学","本科及以上",1]
[null,"哈密地区气象局气象台","市级","预报","业务","大气科学","本科及以上",1]
[null,"哈密地区十三间房气象站","县级","综合气象业务","业务","气象及相关专业","本科及以上",1]
[null,"哈密地区红柳河气象站","县级","综合气象业务","业务","气象及相关专业","本科及以上",1]
[null,"哈密地区淖毛湖气象站","县级","综合气象业务","业务","气象及相关专业","本科及以上",1]
[null,"巴州铁干里克气象站","县级","综合气象业务","业务","大气科学类","本科及以上",1]
[null,"巴州尉犁县气象局","县级","综合气象业务","业务","气象及相关专业","本科及以上",1]
[null,"阿克苏地区拜城县气象局","县级","综合气象业务","业务","气象及相关专业","本科及以上",1]
[null,"阿克苏地区乌什县气象局","县级","综合气象业务","业务","气象及相关专业","本科及以上",1]
[null,"阿克苏地区温宿县气象局","县级","综合气象业务","业务","气象及相关专业","本科及以上",1]
[null,"克州气象局气象台","市级","预报","业务","大气科学","本科及以上",1]
[null,"和田地区和田市气象局","县级","综合气象业务","业务","大气科学","本科及以上",1]
[null,"和田地区策勒县气象局","县级","综合气象业务","业务","气象及相关专业","本科及以上",1]
[null,"和田地区洛浦县气象局","县级","综合气象业务","业务","气象及相关专业","本科及以上",1]
[null,"和田地区于田县气象局","县级","综合气象业务","业务","气象及相关专业","本科及以上",1]
[null,"新疆气象服务中心","省级","影视","业务","动画","本科及以上",1]
[null,"新疆气象局财务核算中心","省级","会计","服务","财经类","本科及以上",2]
[null,"塔城地区气象局财务核算中心","市级","财务","管理","会计","本科及以上",1]
[null,"阿勒泰地区气象局财务核算中心","市级","财务","业务","财经类","本科及以上",1]
[null,"巴州气象局科技服务中心","市级","影视制作","服务","中文、编导","本科及以上",1]
[null,"合计",{"$nulls":5},{"$f":"SUM(H1302:H1352)","v":74}]
[{"$nulls":7}," "]